{"text_format":"1","workbook":"xlsx","n_sheets":4,"sheets":["info","Bill","Languages","Data"],"not_rendered":{"charts":5,"images":2,"macros":1,"external_links":0,"defined_names":4,"comments":0,"pivot_tables":0},"unopened":[],"bounds":{"document_bytes":16777216,"sheet_cells":100000,"rows_first":2000,"rows_last":500,"rows_between":2000,"halvings":0,"cell_chars":16384,"cell_head_chars":4096},"cells_cut":0,"cells_raw":0,"read":"whole","date_system":"1900"}

{"sheet":"info","index":0,"n_rows":60,"n_cols":29,"rows_kept":60,"cut":false,"hidden":false,"merged":[[45,24,46,27],[45,28,46,31],[43,16,43,19],[43,20,43,23],[45,3,46,7],[45,8,46,11],[45,12,46,15],[45,16,46,19],[45,20,46,23],[43,24,43,27],[43,28,43,31],[43,8,43,11],[43,12,43,15],[40,3,41,8],[40,9,41,14],[40,15,41,21],[40,22,41,26],[40,27,41,31],[23,0,26,35],[28,0,28,3],[39,22,39,26],[39,27,39,31],[28,4,28,24],[30,0,32,35],[34,0,35,35],[37,5,37,29],[39,3,39,8],[39,9,39,14],[39,15,39,21],[4,0,5,35],[7,0,7,35],[9,0,12,35],[14,0,16,35],[18,0,21,35],[51,3,52,31],[54,0,55,35],[48,3,49,7],[48,8,49,11],[48,12,49,15],[48,16,49,19],[48,20,49,23],[48,24,49,27],[48,28,49,31]]}
[]
[{"$f":"Languages!A153","v":"Estimado/a:"}]
[]
[]
[{"$f":"Languages!A154","v":"Adjuntamos la información publicada en el BOE con fecha Martes 12 de marzo de 2019. Núm. 61  Sec. I Pág. 23231, Anexo XIII"}]
[]
[]
[{"$f":"Languages!A155","v":"Información sobre la regularización del suplemento por tributos autonómicos de la Comunidad Autónoma del año 2013"}]
[]
[{"$f":"Languages!A156","v":"Los peajes de acceso de energía eléctrica forman parte del precio de la electricidad, y están destinados a cubrir diferentes partidas de costes del sector eléctrico con retribución regulada. Entre otros, cubren el coste de las actividades de redes (transporte y distribución de energía eléctrica) y producción a partir de fuentes de energía renovables, cogeneración y residuos con régimen primado."}]
[]
[]
[]
[]
[{"$f":"Languages!A157","v":"En el año 2013 la normativa contemplaba que en caso de que estas actividades eléctricas fueran gravadas con tributos de carácter autonómico, al peaje de acceso se le incluiría un suplemento territorial para los consumidores de esa Comunidad Autónoma, si bien dicho suplemento no se llegó a aprobar por el Gobierno."}]
[]
[]
[]
[{"$f":"Languages!A158","v":"En ejecución de las sentencias del Tribunal Supremo dictadas a resultas de los recursos interpuestos por empresas que ejercen su actividad en el sector eléctrico, se aprobó la Orden ETU/35/2017, de 23 de enero, por la que se establecen los suplementos territoriales en determinadas comunidades autónomas. Por ello, los suplementos territoriales han sido aplicados en sus facturas, sobre los consumos que realizó en el año 2013."}]
[]
[]
[]
[]
[{"$f":"Languages!A159","v":"El Tribunal Supremo, instado por las empresas recurrentes, ha determinado que esta ejecución fue parcial, por lo que la Ministra para la Transición Ecológica ha aprobado una orden ministerial con los suplementos territoriales adicionales para su Comunidad Autónoma que le serán aplicados en próximas facturas, sobre los consumos que realizó en el año 2013."}]
[]
[]
[]
[]
[{"$f":"Languages!A160","v":"Por ello, "},null,null,null,{"$f":"IF(Data!B300=0,\"\",IF(Data!B300=\"\",\"\",Data!B300))","v":""}]
[]
[{"$f":"Languages!A161","v":"Regularizará las cantidades que resultan de detraer al valor fijado en concepto de suplemento territorial en su comunicad autónoma y el valor que se utilizó para determinar los suplementos territoriales aprobados en la orden ETU/35/2017, de 23 de enero.\""}]
[]
[]
[]
[{"$f":"Languages!A162","v":"Esta regularización se le aplicará en la factura adjunta, y vendrá identificada por el concepto «Suplemento territorial por tributos autonómicos de la Comunidad Autónoma pertinente del año 2013»."}]
[]
[]
[null,null,null,null,null,{"$f":"Languages!A163","v":"DETALLE"}]
[]
[null,null,null,{"$f":"Languages!A164","v":"Desde"},null,null,null,null,null,{"$f":"Languages!A165","v":"Hasta"},null,null,null,null,null,{"$f":"Languages!A166","v":"Total regularización"},null,null,null,null,null,null,{"$f":"Languages!A167","v":"Cuotas totales"},null,null,null,null,{"$f":"Languages!A168","v":"Cuota actual"}]
[null,null,null,{"$f":"IF(Data!AB2<>\"\",IF(Data!AE20=49,Data!AH20,IF(Data!AE21=49,Data!AH21,IF(Data!AE22=49,Data!AH22,IF(Data!AE23=49,Data!AH23,\"\")))),\"\")","v":""},null,null,null,null,null,{"$f":"IF(Data!AB2<>\"\",IF(Data!AE20=49,Data!AI20,IF(Data!AE21=49,Data!AI21,IF(Data!AE22=49,Data!AI22,IF(Data!AE23=49,Data!AI23,\"\")))),\"\")","v":""},null,null,null,null,null,{"$f":"IF(Data!AB2<>\"\",IF(Data!AE20=49,Data!AG20,IF(Data!AE21=49,Data!AG21,IF(Data!AE22=49,Data!AG22,IF(Data!AE23=49,Data!AG23,\"\")))),\"\")","v":""},null,null,null,null,null,null,{"$f":"IF(Data!AB2<>\"\",IF(Data!AE20=49,Data!AF18,IF(Data!AE21=49,Data!AF18,IF(Data!AE22=49,Data!AF18,IF(Data!AE23=49,Data!AF18,\"\")))),\"\")","v":""},null,null,null,null,{"$f":"IF(Data!AB2<>\"\",IF(Data!AE20=49,Data!AB2,IF(Data!AE21=49,Data!AB2,IF(Data!AE22=49,Data!AB2,IF(Data!AE23=49,Data!AB2,\"\")))),\"\")","v":""}]
[]
[]
[null,null,null,null,null,null,null,null,"P1",null,null,null,"P2",null,null,null,"P3",null,null,null,"P4",null,null,null,"P5",null,null,null,"P6"]
[]
[null,null,null,{"$f":"Languages!A169","v":"Potencia (W)"},null,null,null,null,{"$f":"IF(Data!AB2<>\"\",IF(Data!AE20=49,Data!AC2,IF(Data!AE21=49,Data!AC2,IF(Data!AE22=49,Data!AC2,IF( Data!AE23=49,Data!AC2,\"\")))),\"\")","v":""},null,null,null,{"$f":"IF(Data!AB2<>\"\",IF(Data!AE20=49,Data!AD2,IF(Data!AE21=49,Data!AD2,IF(Data!AE22=49,Data!AD2,IF( Data!AE23=49,Data!AD2,\"\")))),\"\")","v":""},null,null,null,{"$f":"IF(Data!AB2<>\"\",IF(Data!AE20=49,Data!AE2,IF(Data!AE21=49,Data!AE2,IF(Data!AE22=49,Data!AE2,IF( Data!AE23=49,Data!AE2,\"\")))),\"\")","v":""},null,null,null,{"$f":"IF(Data!AB2<>\"\",IF(Data!AE20=49,Data!AF2,IF(Data!AE21=49,Data!AF2,IF(Data!AE22=49,Data!AF2,IF( Data!AE23=49,Data!AF2,\"\")))),\"\")","v":""},null,null,null,{"$f":"IF(Data!AB2<>\"\",IF(Data!AE20=49,Data!AG2,IF(Data!AE21=49,Data!AG2,IF(Data!AE22=49,Data!AG2,IF( Data!AE23=49,Data!AG2,\"\")))),\"\")","v":""},null,null,null,{"$f":"IF(Data!AB2<>\"\",IF(Data!AE20=49,Data!AH2,IF(Data!AE21=49,Data!AH2,IF(Data!AE22=49,Data!AH2,IF( Data!AE23=49,Data!AH2,\"\")))),\"\")","v":""}]
[]
[]
[null,null,null,{"$f":"Languages!A170","v":"Energía activa (Wh)"},null,null,null,null,{"$f":"IF(Data!AB2<>\"\",IF(Data!AE20=49,Data!AW2,IF(Data!AE21=49,Data!AW2,IF(Data!AE22=49,Data!AW2,IF( Data!AE23=49,Data!AW2,\"\")))),\"\")","v":""},null,null,null,{"$f":"IF(Data!AB2<>\"\",IF(Data!AE20=49,Data!AX2,IF(Data!AE21=49,Data!AX2,IF(Data!AE22=49,Data!AX2,IF( Data!AE23=49,Data!AX2,\"\")))),\"\")","v":""},null,null,null,{"$f":"IF(Data!AB2<>\"\",IF(Data!AE20=49,Data!AY2,IF(Data!AE21=49,Data!AY2,IF(Data!AE22=49,Data!AY2,IF( Data!AE23=49,Data!AY2,\"\")))),\"\")","v":""},null,null,null,{"$f":"IF(Data!AB2<>\"\",IF(Data!AE20=49,Data!AZ2,IF(Data!AE21=49,Data!AZ2,IF(Data!AE22=49,Data!AZ2,IF( Data!AE23=49,Data!AZ2,\"\")))),\"\")","v":""},null,null,null,{"$f":"IF(Data!AB2<>\"\",IF(Data!AE20=49,Data!BA2,IF(Data!AE21=49,Data!BA2,IF(Data!AE22=49,Data!BA2,IF( Data!AE23=49,Data!BA2,\"\")))),\"\")","v":""},null,null,null,{"$f":"IF(Data!AB2<>\"\",IF(Data!AE20=49,Data!BB2,IF(Data!AE21=49,Data!BB2,IF(Data!AE22=49,Data!BB2,IF( Data!AE23=49,Data!BB2,\"\")))),\"\")","v":""}]
[]
[]
[null,null,null,{"$f":"Languages!A171","v":"* Las unidades facilitadas por distribuidora para este suplemento vienen representadas en Watts para potencia (W) y en Watts hora (Wh) para energía "}]
[]
[]
[{"$f":"Languages!A172","v":"Si tiene cualquier duda, puede ponerse en contacto con nosotros, haciendo uso de los medios habituales que encontrará en la factura."}]
[]
[]
[{"$f":"Languages!A173","v":"Saludos cordiales, "}]
[null,null,null,null,null,null,null,null,null,null,null,null,null,null," "]
[{"$f":"IF(Data!B300=0,\"\",IF(Data!B300=\"\",\"\",Data!B300))","v":""}]

{"sheet":"Bill","index":1,"n_rows":232,"n_cols":30,"rows_kept":232,"cut":false,"hidden":false,"merged":[[148,2,148,7],[171,1,172,19],[184,8,184,17],[128,3,128,6],[129,3,129,6],[130,3,130,6],[131,3,131,6],[132,5,132,12],[141,2,141,10],[142,2,142,11],[175,2,177,13],[184,2,184,6],[97,16,97,17],[99,16,99,17],[100,16,100,17],[101,16,101,17],[102,16,102,17],[132,16,132,17],[142,16,142,17],[124,16,124,17],[126,16,126,17],[127,16,127,17],[128,16,128,17],[129,16,129,17],[130,16,130,17],[131,16,131,17],[109,16,109,17],[110,16,110,17],[149,27,149,28],[150,27,150,28],[151,27,151,28],[152,27,152,28],[153,27,153,28],[154,27,154,28],[111,16,111,17],[112,16,112,17],[146,23,146,25],[146,27,146,28],[147,10,147,17],[147,27,147,28],[148,27,148,28],[119,16,119,17],[120,16,120,17],[113,16,113,17],[114,16,114,17],[117,2,117,16],[119,5,119,7],[119,8,119,11],[120,2,120,6],[120,7,120,8],[148,8,148,13],[144,11,144,12],[83,18,83,19],[84,10,84,17],[83,3,84,8],[90,10,90,12],[91,16,91,17],[92,16,92,17],[93,16,93,17],[95,5,95,7],[96,2,96,7],[96,16,96,17],[94,16,94,17],[95,16,95,17],[40,4,40,5],[40,7,40,8],[43,4,43,6],[46,2,46,3],[47,2,47,3],[47,7,47,8],[79,2,79,3],[80,4,81,4],[82,10,82,17],[64,5,65,9],[71,6,72,9],[33,2,33,3],[33,4,33,13],[34,2,34,3],[34,4,34,5],[37,4,37,5],[38,2,38,3],[38,4,38,5],[39,2,39,3],[39,4,39,5],[39,7,39,8],[27,11,27,14],[30,7,30,10],[30,11,30,12],[30,23,30,25],[30,29,30,30],[32,2,32,3],[32,4,32,6],[32,23,32,25],[32,29,32,30],[32,9,32,11],[88,0,170,0],[175,0,241,0],[74,6,75,9],[77,6,78,9],[95,10,95,12],[96,10,96,12],[100,5,100,7],[101,5,101,7],[106,5,106,7],[107,2,107,7],[111,5,111,7],[112,5,112,7],[121,2,121,10],[122,2,122,6],[123,2,123,6],[123,9,123,10],[124,5,124,6],[124,9,124,11],[83,10,83,17],[103,16,103,17],[104,16,104,17],[105,16,105,17],[107,16,107,17],[108,16,108,17],[208,1,208,6],[208,8,208,18],[209,1,209,6],[209,8,209,19],[230,8,230,15],[231,8,231,15],[213,2,216,13],[222,8,222,16],[223,8,223,16],[224,8,224,16],[225,8,225,16],[228,8,228,15],[229,8,229,15],[7,8,7,15],[10,0,86,0],[11,2,11,3],[11,5,11,6],[11,8,12,15],[13,8,14,15],[15,8,15,15],[12,2,12,3],[16,2,18,6],[51,2,51,3],[52,2,52,3],[53,2,53,3],[54,2,54,3],[56,2,56,3],[57,2,57,3],[12,5,12,6],[13,5,13,6],[13,2,13,3],[14,2,14,3],[24,2,24,3],[25,2,25,3],[26,4,26,5],[27,4,27,7],[27,8,27,10]]}
[]
[]
[]
[]
[]
[]
[]
[null,null,null,null,null,null,null,null,"Factura de electricidad de Mercado Libre"]
[]
[]
[{"$f":"Languages!A78","v":"XXXX · X-XXX · Calle · CP · Municipio · Inscrita en el Registro Mercantil de X, Tomo X, Folio X, Hoja X, Inscripción X."},{"$f":"Languages!A2","v":"DATOS DE LA FACTURA"}]
[null,null,{"$f":"Languages!A3","v":"IMPORTE FACTURA:"},null,null,{"$f":"Data!B21","v":54.16},null,null,{"$f":"\"  \" & Data!B1","v":"  "}]
[null,null,{"$f":"Languages!A4","v":"Nº Factura:"},null,null,{"$f":"Data!B15","v":0}]
[null,null,{"$f":"Languages!A5","v":"Periodo de consumo:"},null,null,{"$f":"Data!B19 & \"  -  \" & Data!B20","v":"19/04/2017  -  19/04/2018"},null,null,{"$f":"\"  \" & Data!B134","v":"  dlajdñjañdñd ´dkakdák´kad´kad d´ka´dka´dkákdák´dka dákdákdákd´k´dád´"}]
[null,null,{"$f":"Languages!A6","v":"Fecha de cargo:"},null,null,null,{"$f":"Data!B18","v":"02/05/2017"}]
[null,null,{"$f":"Languages!A136","v":"Fecha de Factura:"},null,null,null,{"$f":"Data!B17","v":"15/23/2017"},null,{"$f":"\"  \" & Data!B135 & \"  \"  & Data!B136","v":"  08080  Población"}]
[null,null,{"$f":"IF(Data!B225<>\"\",\"Esta factura anula la factura número  \"&Data!B225,IF(Data!B226<>\"\",\"Esta factura rectifica la factura número \"&Data!B226,\"\"))","v":""}]
[]
[]
[]
[]
[null,{"$f":"Languages!A17","v":"DATOS DEL CONTRATO"}]
[]
[null,null,{"$f":"Languages!A18","v":"Titular:"},{"$f":"Data!B1","v":0}]
[]
[null,null,{"$f":"Languages!A79","v":"NIF:"},null,{"$f":"Data!B3","v":"b2234242"}]
[null,null,{"$f":"Languages!A33","v":"Forma de pago:"},null,{"$f":"Data!B16","v":"Domiciliado"}]
[null,null,{"$f":"Languages!A34","v":"Entidad Bancaria:"},null,{"$f":"Data!B186","v":0},null,null,null,{"$f":"Languages!A35","v":"Nº de Cuenta:"},null,null,{"$f":"Data!B22","v":"ES1497490174010410841"}]
[null,null,{"$f":"Languages!A137","v":"Número de contrato:"},null,{"$f":"Data!B9","v":0}]
[]
[null,null,"Penalización por baja anticipada:",null,null,{"$f":"Data!B319","v":0},null,{"$f":"Languages!A138","v":"Fecha fin contrato:"},null,null,null,{"$f":"Data!B10","v":"1997-04-12"}]
[null,null,"DATOS DEL SUMINISTRO"]
[null,null,{"$f":"Languages!A29","v":"CUPS:"},null,{"$f":"Data!B5","v":"ES0090960022205455PX0F"}]
[null,null,{"$f":"Languages!B19","v":"Dirección de suministro:"},null,{"$f":"Data!B57","v":" ,  () "}]
[null,null,"Número del contador:",null,{"$f":"Data!B309","v":54661616}]
[]
[null,null,{"$f":"Languages!A25","v":"Distribuidora:"},null,{"$f":"Data!B8 & \"    \" & Data!B316","v":"EDISTRIBUCION REDES DIGITALES SL.    www.endesa.com/es"}]
[null,null,"Contrato de Acceso:",null,{"$f":"Data!B6","v":"2552352545"}]
[null,null,{"$f":"Languages!A23","v":"Tarifa de acceso:"},null,{"$f":"Data!B11","v":"2.0A"}]
[null,null,{"$f":"Languages!A24","v":"Potencia:"},null,{"$f":"\"P1: \" &  Data!B12","v":"P1: 0 kW      "},null,{"$f":"\"P2: \" &  Data!B13","v":"P2: 0 kW      "},{"$f":"\"P3: \" &  Data!B14","v":"P3: 0 kW      "}]
[null,null,null,null,{"$f":"\"P4: \" &  Data!B159","v":"P4: 0 kW      "},null,{"$f":"\"P5: \" &  Data!B160","v":"P5: 0 kW      "},{"$f":"\"P6: \" &  Data!B161","v":"P6: 0 kW      "}]
[]
[]
[]
[null,null,"ATENCIÓN AL CLIENTE"]
[]
[null,null,{"$f":"Languages!A30","v":"Atención al cliente: "},null,"XXXXXXXXXX"]
[null,null,{"$f":"Languages!A31","v":"Averías y Urgencias:"},null,{"$f":"Data!B63","v":"900 121 121"},null,null,{"$f":"Languages!A32","v":"Reclamaciones:  "},null,"XXXXXXXXXX"]
[]
[null,{"$f":"Languages!A36","v":"INFORMACIÓN DEL CONSUMO ELÉCTRICO"}]
[]
[null,null,null,null,{"$f":"Languages!A142","v":"Fecha"},"P1","P2","P3","P4","P5","P6",null,"Lectura"]
[null,null,{"$f":"Languages!A139","v":"Lectura inicial (kWh)"},null,{"$f":"Data!B19","v":"19/04/2017"},{"$f":"Data!B70","v":0},{"$f":"Data!B71","v":0},{"$f":"Data!B72","v":0},{"$f":"Data!B73","v":0},{"$f":"Data!B74","v":0},{"$f":"Data!B75","v":0},null,{"$f":"Data!C220","v":"Real"}]
[null,null,{"$f":"Languages!A140","v":"Lectura final (kWh)"},null,{"$f":"Data!B20","v":"19/04/2018"},{"$f":"Data!B76","v":0},{"$f":"Data!B77","v":0},{"$f":"Data!B78","v":0},{"$f":"Data!B79","v":0},{"$f":"Data!B80","v":0},{"$f":"Data!B81","v":0},null,{"$f":"Data!C193","v":"Real"}]
[null,null,{"$f":"Languages!A141","v":"Maxímetros (kW)"},null,null,{"$f":"Data!B88","v":0},{"$f":"Data!B89","v":0},{"$f":"Data!B90","v":0},{"$f":"Data!B91","v":0},{"$f":"Data!B92","v":0},{"$f":"Data!B93","v":0}]
[]
[null,null,{"$f":"Languages!A143","v":"Consumo activa (kWh)"},null,null,{"$f":"Data!B82","v":0},{"$f":"Data!B83","v":0},{"$f":"Data!B84","v":0},{"$f":"Data!B85","v":0},{"$f":"Data!B86","v":0},{"$f":"Data!B87","v":0}]
[null,null,{"$f":"Languages!A144","v":"Consumo reactiva (kVArh)"},null,null,{"$f":"Data!B290","v":0},{"$f":"Data!B291","v":0},{"$f":"Data!B292","v":0},{"$f":"Data!B293","v":0},{"$f":"Data!B294","v":0},{"$f":"Data!B295","v":0}]
[]
[null,null,"Maximetros del año anterior (kW)",null,null,{"$f":"Data!B310","v":0},{"$f":"Data!B311","v":0},{"$f":"Data!B312","v":0},{"$f":"Data!B313","v":0},{"$f":"Data!B314","v":0},{"$f":"Data!B315","v":0}]
[]
[]
[null,{"$f":"Languages!A90","v":"HISTÓRICO DE CONSUMO"},null,null,null,null,null,null,null,null,null,null,null,null,null,null,null,null,null,null,null,null,"Incentivos a las energías renovables, cogeneración y residuos"]
[]
[]
[]
[]
[]
[]
[]
[null,null,null,null,null,null,null,null,null,null,null,null,null,null,null,null,null,null,null,null,null,null,"Month Desc","P1","P2","P3","P4","P5","P6"]
[null,null,null,null,null,null,null,null,null,null,null,null,null,null,null,null,null,null,null,null,null,null,null,null,null,null,null,null,null,{"$f":"MID(W72,1,4)","v":""}]
[null,null,null,null,null,null,null,null,null,null,null,null,null,null,null,null,null,null,null,null,null,null,null,null,null,null,null,null,null,""]
[null,null,null,null,null,null,null,null,null,null,null,null,null,null,null,null,null,null,null,null,null,null,null,null,null,null,null,null,null,""]
[null,null,null,null,null,null,null,null,null,null,null,null,null,null,null,null,null,null,null,null,null,null,null,null,null,null,null,null,null,""]
[null,null,null,null,null,null,null,null,null,null,null,null,null,null,null,null,null,null,null,null,null,null,null,null,null,null,null,null,null,""]
[null,null,null,null,null,null,null,null,null,null,null,null,null,null,null,null,null,null,null,null,null,null,null,null,null,null,null,null,null,""]
[null,null,null,null,null,null,null,null,null,null,null,null,null,null,null,null,null,null,null,null,null,null,null,null,null,null,null,null,null,""]
[null,null,null,null,null,null,null,null,null,null,null,null,null,null,null,null,null,null,null,null,null,null,null,null,null,null,null,null,null,""]
[null,null,null,null,null,null,null,null,null,null,null,null,null,null,null,null,null,null,null,null,null,null,null,null,null,null,null,null,null,""]
[null,null,null,null,null,null,null,null,null,null,null,null,null,null,null,null,null,null,null,null,null,null,null,null,null,null,null,null,null,""]
[null,null,null,null,null,null,null,null,null,null,null,null,null,null,null,null,null,null,null,null,null,null,null,null,null,null,null,null,null,""]
[null,null,null,null,null,null,null,null,null,null,null,null,null,null,null,null,null,null,null,null,null,null,null,null,null,null,null,null,null,""]
[null,null,null,null,null,null,null,null,null,null,null,null,null,null,null,null,null,null,null,null,null,null,null,{"$f":"COUNT(X72:X83)","v":0},null,null,null,null,{"$f":"SUM(X72:AC83)","v":0}]
[null,null,null,null,null,null,null,null,null,null,null,null,null,null,null,null,null,null,null,null,null,null,null,null,null,null,null,null,{"$f":"AC84/365","v":0},{"$f":"ROUND(AC85,2)","v":0}]
[null,null,null,null,null,null,null,null,null,null,null,null,null,null,null,null,null,null,null,null,null,null,null,null,null,null,null,null,{"$f":"(SUM(Data!B35:B37)+SUM(Data!B174:B176))/Data!B26","v":{"$error":"#DIV/0!"}},{"$error":"#DIV/0!"}]
[]
[]
[{"$f":"A11","v":"XXXX · X-XXX · Calle · CP · Municipio · Inscrita en el Registro Mercantil de X, Tomo X, Folio X, Hoja X, Inscripción X."},{"$f":"Languages!A51","v":"DETALLE DE LA FACTURA"}]
[]
[null,null,"Facturación energía consumida"]
[null,null,"Coste energía consumida",null,null,"P1","P2","P3","P4","P5","P6",null,null,null,null,null,null,null,null,null,null,null,null,{"$f":"Languages!A45","v":"DESTINO DEL IMPORTE DE LA FACTURA"}]
[null,null,"Consumo kWh",null,null,{"$f":"Data!B35","v":0},{"$f":"Data!B36","v":0},{"$f":"Data!B37","v":0},{"$f":"Data!B174","v":0},{"$f":"Data!B175","v":0},{"$f":"Data!B176","v":0},null,null,null,null,null,null,null,null,null,null,null,null,"Total facturado",{"$f":"Data!B21","v":54.16}]
[null,null,"Precio €/kWh",null,null,{"$f":"Data!B38","v":0},{"$f":"Data!B39","v":0},{"$f":"Data!B40","v":0},{"$f":"Data!B177","v":0},{"$f":"Data!B178","v":0},{"$f":"Data!B179","v":0},null,null,null,null,null,null,null,null,null,null,null,null,"Destino",{"$f":"Languages!A83","v":"Importe"},"cargos"]
[null,null,"Importe por energía consumida",null,null,{"$f":"Data!B41","v":0},{"$f":"Data!B42","v":0},{"$f":"Data!B43","v":0},{"$f":"Data!B183","v":0},{"$f":"Data!B184","v":0},{"$f":"Data!B185","v":0},null,{"$f":"SUM(F95:K95)","v":0},null,null,null,null,null,null,null,null,null,null,"Impuestos aplicados",{"$f":"Data!B146","v":33},"Déficit",0.37890000000000001]
[null,null,null,null,null,null,null,null,null,null,null,null,null,null,null,null,null,null,null,null,null,null,null,"Cargos",{"$f":"Data!B317+Data!B318","v":0},"RECORE",0.4793]
[null,null,"Coste peajes de transporte y distribución y cargos",null,null,null,null,null,null,null,null,null,null,null,null,null,null,null,null,null,null,null,null,"Coste de energía",{"$f":"Data!D318+Bill!M117+Bill!M119+Bill!M120+Data!B152+Data!B191+Data!B62","v":0},"TNP",0.1404]
[null,null,"Consumo kWh",null,null,{"$f":"Bill!F93","v":0},{"$f":"Bill!G93","v":0},{"$f":"Bill!H93","v":0},{"$f":"Bill!I93","v":0},{"$f":"Bill!J93","v":0},{"$f":"Bill!K93","v":0},null,null,null,null,null,null,null,null,null,null,null,null,"Alquiler del equipo de medida",{"$f":"M127","v":12.33},"Otros",1.2999999999999999E-3]
[null,null,"Precio €/kWh",null,null,{"$f":"Data!B139+Data!B303","v":0},{"$f":"Data!B304+Data!B140","v":0},{"$f":"Data!B141+Data!B305","v":0},{"$f":"Data!B306+Data!B142","v":0},{"$f":"Data!B143+Data!B307","v":0},{"$f":"Data!B308+Data!B144","v":0},null,null,null,null,null,null,null,null,null,null,null,null,"Peajes de transporte y distribución",{"$f":"Data!D317+Data!D144","v":0}]
[null,null,"Importe peaje por energía consumida",null,null,{"$f":"ROUND(F99*F98,2)","v":0},0,0,0,0,0,null,{"$f":"SUM(F100:K100)","v":0}]
[]
[null,null,"Facturación potencia contratada"]
[null,null,"Coste potencia contractada",null,null,"P1","P2","P3","P4","P5","P6"]
[null,null,"Potencia facturada kW",null,null,{"$f":"Data!B32","v":0},{"$f":"Data!B33","v":0},{"$f":"Data!B34","v":0},{"$f":"Data!B162","v":0},{"$f":"Data!B163","v":0},{"$f":"Data!B164","v":0}]
[null,null,"Precio €/kW y día",null,null,{"$f":"Data!B23","v":0},{"$f":"Data!B24","v":0},{"$f":"Data!B25","v":0},{"$f":"Data!B165","v":0},{"$f":"Data!B166","v":0},{"$f":"Data!B167","v":0}]
[null,null,"Importe por potencia ",null,null,{"$f":"Data!B29","v":0},{"$f":"Data!B30","v":0},{"$f":"Data!B31","v":0},{"$f":"Data!B171","v":0},{"$f":"Data!B172","v":0},{"$f":"Data!B173","v":0},null,{"$f":"SUM(F106:K106)","v":0}]
[]
[null,null,"Coste peajes de transporte y distribución y cargos"]
[null,null,"Potencia facturada",null,null,{"$f":"F104","v":0},0,0,0,0,0]
[null,null,"Precio €/kW y día",null,null,{"$f":"Data!B320+Data!B326","v":0},{"$f":"Data!B321+Data!B327","v":0},{"$f":"Data!B322+Data!B328","v":0},{"$f":"Data!B323+Data!B329","v":0},{"$f":"Data!B324+Data!B330","v":0},{"$f":"Data!B325+Data!B331","v":0}]
[null,null,"Importe peaje por potencia ",null,null,{"$f":"ROUND(F110*F109*Data!$B$26,2)","v":0},{"$f":"ROUND(G110*G109*Data!$B$26,2)","v":0},{"$f":"ROUND(H110*H109*Data!$B$26,2)","v":0},{"$f":"ROUND(I110*I109*Data!$B$26,2)","v":0},{"$f":"ROUND(J110*J109*Data!$B$26,2)","v":0},{"$f":"ROUND(K110*K109*Data!$B$26,2)","v":0},null,{"$f":"SUM(F111:K111)","v":0}]
[]
[null,null,"Facturación energía reactiva"]
[null,null,"Coste energía reactiva",null,null,"P1","P2","P3","P4","P5","P6"]
[null,null,"Consumo kVArh",null,null,{"$f":"Data!B112","v":0},{"$f":"Data!B113","v":0},{"$f":"Data!B114","v":0},{"$f":"Data!B115","v":0},{"$f":"Data!B116","v":0},{"$f":"Data!B117","v":0}]
[null,null,"Precio €/kVArh",null,null,{"$f":"Data!B100","v":0},{"$f":"Data!B101","v":0},{"$f":"Data!B102","v":0},{"$f":"Data!B103","v":0},{"$f":"Data!B104","v":0},{"$f":"Data!B105","v":0},null,null,null,null,null,null,null,null,null,null,null,null,{"$f":"IF(Data!AF200<>0,Data!AE200,\"\")","v":""},{"$f":"IF(Data!AF200<>0,Data!AF200,\"\")","v":""}]
[null,null,"Importe per energía reactiva",null,null,{"$f":"Data!D112","v":0},{"$f":"Data!D113","v":0},{"$f":"Data!D114","v":0},{"$f":"Data!D115","v":0},{"$f":"Data!D116","v":0},{"$f":"Data!D117","v":0},null,{"$f":"Data!B55","v":0},null,null,null,null,null,null,null,null,null,null,{"$f":"IF(Data!L200<>0,Data!K200,\"\")","v":""},{"$f":"IF(Data!L200=0,\"\",Data!L200)","v":""}]
[null,null,null,null,null,null,null,null,null,null,null,null,null,null,null,null,null,null,null,null,null,null,null,{"$f":"IF(Data!Y200<>0,Data!X200,\"\")","v":""},{"$f":"IF(Data!Y201=0,\"\",Data!Y201)","v":""}]
[null,null,{"$f":"Languages!A59","v":"Excesos de Potencia"},null,null,null,null,null,null,null,null,null,{"$f":"Data!B188","v":0}]
[null,null,"Energía Capacitiva",null,null,null,null,null,null,null,null,null,{"$f":"Data!B302","v":0}]
[null,null,"Compensación por excedentes",null,null,null,null,{"$f":"Data!S34 & \" kWh x \" & Data!R34 & \" €/kWh\"","v":"0 kWh x 0 €/kWh"},null,null,null,null,{"$f":"Data!Q34","v":0}]
[null,null,{"$f":"IF(Data!AB2=0,\"\",IF(Data!AB2=\"\",\"\",\"Suplemento territorial por tributos autonómicos de la Comunidad Autónoma de Cataluña del año 2013. Orden ETU/35/2017, de 23 de Enero.\"))","v":""},null,null,null,null,null,null,null,null,null,{"$f":"IF(Data!D191=0,\"\",IF(Data!D191=\"\",\"\",Data!D191))","v":""}]
[null,null,"Importe concepto repercutible",null,null,null,null,null,null,null,null,null,{"$f":"Data!C191","v":0}]
[null,null,"Ajuste IE Tarifa Plana",null,null,null,null,null,null,null,null,null,{"$f":"Data!U34","v":0}]
[null,null,{"$f":"Languages!A60","v":" Impuesto Electricidad"},null,null,5.11269632E-2,null,null,{"$f":"Data!B44","v":0},null,null,null,{"$f":"Data!B45","v":0}]
[null,null,null,{"$f":"Languages!A61","v":"        Descuento Exención Impuesto eléctrico"},null,null,null,null,null,null,null,null,{"$f":"Data!B121","v":0}]
[null,null,{"$f":"Languages!A62","v":"Alquiler Equipo de medida"},null,null,null,null,{"$f":"ROUND(Data!B154,6)&\" €  x  \"&Data!B26 & \" días\"","v":"0 €  x  0 días"},null,null,null,null,{"$f":"Data!B46","v":12.33}]
[null,null,{"$f":"Languages!A11","v":"Conceptos extra"},null,null,null,null,null,null,null,null,null,{"$f":"IF(X128<>0,X128,0)","v":0},null,null,null,null,null,null,null,null,null,{"$f":"Data!L200+Data!L201+Data!L202+Data!L203+Data!L204","v":0},{"$f":"IFERROR(W128,0)","v":0}]
[null,null,null,{"$f":"IF(Data!L200<>0,Data!K200,\"\")","v":""},null,null,null,null,null,null,null,null,{"$f":"IF(Data!L200=0,\"\",Data!L200)","v":""}]
[null,null,null,{"$f":"IF(Data!L201<>0,Data!K201,\"\")","v":""},null,null,null,null,null,null,null,null,{"$f":"IF(Data!L201=0,\"\",Data!L201)","v":""}]
[null,null,null,{"$f":"IF(Data!L202<>0,Data!K202,\"\")","v":""},null,null,null,null,null,null,null,null,{"$f":"IF(Data!L202=0,\"\",Data!L202)","v":""}]
[null,null,null,{"$f":"IF(Data!L203<>0,Data!K203,\"\")","v":""},null,null,null,null,null,null,null,null,{"$f":"IF(Data!L203=0,\"\",Data!L203)","v":""}]
[]
[]
[]
[]
[]
[null,null,null,null,null,null,null,null,null,{"$f":"Languages!A63","v":"Base imponible"},null,null,{"$f":"Data!B47","v":0}]
[]
[null,null,null,null,null,null,null,null,null,{"$f":"Data!B127","v":0},{"$f":"Data!B128/100","v":0},null,{"$f":"Data!B48","v":0}]
[null,null,null,null,null,null,null,null,null,{"$f":"IF(Data!B131<>0,Data!B131,\"\")","v":""},{"$f":"IF(Data!B130<>0,Data!B132/100,\"\")","v":""},null,{"$f":"IF(Data!B130<>0,Data!B130,\"\")","v":""}]
[null,null,{"$f":"IF(Data!Y200<>0,Data!X200,\"\")","v":""},null,null,null,null,null,null,null,null,null,{"$f":"IF(Data!Y200=0,\"\",Data!Y200)","v":""},{"$f":"IF(Data!Y200=0,\"\",Data!Y200)","v":""}]
[null,null,{"$f":"IF(Data!Y201<>0,Data!X201,\"\")","v":""},null,null,null,null,null,null,null,null,null,{"$f":"IF(Data!Y201=0,\"\",Data!Y201)","v":""},null,null,null,{"$f":"IF(Data!Y201=0,\"\",Data!Y201)","v":""}]
[]
[null,null,{"$f":"Languages!A16","v":"TOTAL IMPORTE FACTURA"},null,null,null,null,null,null,null,null,{"$f":"Data!B21","v":54.16}]
[]
[null,null,{"$f":"Languages!A45","v":"DESTINO DEL IMPORTE DE LA FACTURA"}]
[]
[null,null,"Este es el destino del importe de su factura:",null,null,null,null,null,"Destino del coste de los cargos del sistema eléctrico:",null,null,null,null,null,null,null,null,null,null,null,null,null,null,"Origen",null,"Mezcla de Producción sistema eléctrico español"]
[]
[null,null,null,null,null,null,null,null,null,null,null,null,null,null,null,null,null,null,null,null,null,null,null,{"$f":"Languages!A66","v":"Renovable"},0.37,0.37]
[null,null,null,null,null,null,null,null,null,null,null,null,null,null,null,null,null,null,null,null,null,null,null,{"$f":"Languages!A67","v":"Cogeneración de Alta Eficiencia"},4.9000000000000002E-2,4.9000000000000002E-2]
[null,null,null,null,null,null,null,null,null,null,null,null,null,null,null,null,null,null,null,null,null,null,null,{"$f":"Languages!A68","v":"Cogeneración"},6.7000000000000004E-2,6.7000000000000004E-2]
[null,null,null,null,null,null,null,null,null,null,null,null,null,null,null,null,null,null,null,null,null,null,null,{"$f":"Languages!A69","v":"CC Gas Natural"},0.215,0.215]
[null,null,null,null,null,null,null,null,null,null,null,null,null,null,null,null,null,null,null,null,null,null,null,{"$f":"Languages!A70","v":"Carbón"},4.9000000000000002E-2,4.9000000000000002E-2]
[null,null,null,null,null,null,null,null,null,null,null,null,null,null,null,null,null,null,null,null,null,null,null,"Fuel/Gas",2.1999999999999999E-2,2.1999999999999999E-2]
[null,null,null,null,null,null,null,null,null,null,null,null,null,null,null,null,null,null,null,null,null,null,null,{"$f":"Languages!A72","v":"Nuclear"},0.218,0.218]
[null,null,null,null,null,null,null,null,null,null,null,null,null,null,null,null,null,null,null,null,null,null,null,{"$f":"Languages!A73","v":"Otras"},0.01,0.01]
[null,null,null,null,null,null,null,null,null,null,null,null,null,null,null,null,null,null,null,null,null,null,null,null,{"$f":"SUM(Y151:Y158)","v":1}]
[]
[]
[]
[]
[]
[]
[]
[]
[]
[]
[]
[]
[null,"Para efectuar reclamaciones del contrato de suministro o facturaciones podrá dirigirse, en el caso de tratarse de una persona física, a la Consejería del órgano competente en materia de consumos de su Comunidad Autónoma."]
[]
[null,null,{"$f":"Languages!A145","v":"ORIGEN DE LA ELECTRICIDAD"}]
[]
[{"$f":"A11","v":"XXXX · X-XXX · Calle · CP · Municipio · Inscrita en el Registro Mercantil de X, Tomo X, Folio X, Hoja X, Inscripción X."},null,"A estos efectos se proporciona el desglose de la combinación de tecnologías de producción nacional para así comparar los porcentajes del promedio nacional con los correspondientes a la energía vendida por XXXXXXX. "]
[]
[]
[]
[]
[]
[]
[]
[]
[null,null,{"$f":"Languages!A64","v":"Mezcla de producción del sistema eléctrico español"},null,null,null,null,null,{"$f":"Languages!A65","v":"Mezcla de producción de XXXXX"}]
[]
[]
[]
[]
[]
[]
[]
[]
[]
[]
[]
[]
[]
[]
[]
[]
[]
[]
[]
[]
[]
[]
[]
[]
[]
[]
[null,null,"IMPACTO MEDIAMBIENTAL"]
[]
[null,null,"En una escala de A a G donde A indica el mínimo impacto ambiental y G el máximo, y que el valor medio nacional corresponde al nivel D, la energía comercializada por XXXXXXXXX tiene los siguientes valores:"]
[]
[]
[]
[]
[]
[]
[]
[]
[null,null,null,null,null,null,null,null,"Residuos Radioactivos"]
[null,null,null,null,null,null,null,null,"Miligramos por kWh"]
[null,null,null,null,null,null,null,null,"Media Nacional 0,52"]
[null,null,null,null,null,null,null,null,"XXXXXXXXX 0,12"]
[]
[]
[null,null,null,"Media Nacional",null,null,null,null,"Dioxido de Carbono"]
[null,null,null,null,null,null,null,null,"Miligramos por kWh"]
[null,null,null,null,null,null,null,null,"Media Nacional 0,20"]
[null,null,null,null,null,null,null,null,"XXXXXXXX 0,07"]

{"sheet":"Languages","index":2,"n_rows":173,"n_cols":5,"rows_kept":173,"cut":false,"hidden":false,"merged":[[46,5,46,12]]}
["es_ES","Español","Català","Euskera"]
[{"$f":"IF(A$1=\"ca_ES\",C2,IF(A$1=\"es_ES\",B2,IF(A$1=\"eu_ES\",D2,\" \")))","v":"DATOS DE LA FACTURA"},"DATOS DE LA FACTURA","DADES DE LA FACTURA","\nFAKTURAREN DATUAK "]
["IMPORTE FACTURA:","IMPORTE FACTURA:","IMPORT FACTURA:","FAKTURAREN ZENBATEKOA:"]
["Nº Factura:","Nº Factura:","Nº Factura:","Faktura zk.:"]
["Periodo de consumo:","Periodo de consumo:","Periode de consum:","Kontsumo-aldia:"]
["Fecha de cargo:","Fecha de cargo:","Data de càrrec:","Karguaren data:"]
["FACTURA RESUMEN","FACTURA RESUMEN","FACTURA RESUM","FAKTURAZIOAREN LABURPENA"]
["Por Potencia","Por Potencia","Per Potència","Potentzia"]
["Por Energía","Por Energía","Per Energia","Energia"]
["Impuesto electricidad","Impuesto electricidad","Impost de l'electricitat","Elektrizitatearen gaineko zerga"]
["Conceptos extra","Conceptos extra","Conceptes extra"]
["Alquiler equipos de medida y control","Alquiler equipos de medida y control","Lloguer d'equips de mesura i control","Neurtzeko eta kontrolatzeko ekipamenduen"]
["Otros","Otros","Altres","Beste batzuk"]
["Garantías","Garantías","Garanties","Bermeak"]
["Impuesto aplicado","Impuesto aplicado","Impost aplicat","Aplikatutako zerga"]
["TOTAL IMPORTE FACTURA","TOTAL IMPORTE FACTURA","TOTAL IMPORT FACTURA","FAKTUREN ZENBATEKOA, GUZTIRA"]
["DATOS DEL CONTRATO","DATOS DEL CONTRATO","DADES DEL CONTRACTE","DATUAK KONTRATUA"]
["Titular:","Titular:","Titular:","Titularra:"]
["Dirección de suministro:","Dirección de suministro:","Direcció del subministrament:","Horniduraren helbidea:"]
["Tipo de contrato:","Tipo de contrato:","Tipus de contracte:","Kontratu-mota:"]
["Tipo de contador:","Tipo de contador:","Tipus de comptador:","Kontagailu-mota:"]
["Facturación con tarifa promedio del periodo de facturación","Facturación con tarifa promedio del periodo de facturación","Facturació amb tarifa promig del periode de facturació","Fakturazioa fakturazio-aldiko batezbesteko tarifarekin"]
["Tarifa de acceso:","Tarifa de acceso:","Tarifa d'accés:","Sarbide-bidesaria:"]
["Potencia:","Potencia:","Potència:","Potentzia"]
["Distribuidora:","Distribuidora:","Distribuidora:","Banatzailea:"]
["Referencia del Contrato ATR: ","Referencia del Contrato ATR: ","Referència del Contracte ATR: ","Erreferentzia kontratua ATR: "]
["Fecha final del contrato:","Fecha final del contrato:","Data final del contracte:","Kontratuaren azken eguna:"]
["Fecha emisión factura:","Fecha emisión factura:","Data emissió factura:","Faktura igorri den eguna:"]
["CUPS:","CUPS:","CUPS:","CUPS:"]
["Atención al cliente: ","Atención al cliente: ","Atenció al client: ","Bezeroaren arreta:  "]
["Averías y Urgencias:","Averías y Urgencias:","Avaries i Emergències:","Matxurak eta larrialdiak:"]
["Reclamaciones:  ","Reclamaciones:  ","Reclamacions:  ","Erreklamazioak:"]
["Forma de pago:","Forma de pago:","Forma de pagament:","Ordaintzeko modua:"]
["Entidad Bancaria:","Entidad Bancaria:","Entitat Bancària:","Banku-entitatea:"]
["Nº de Cuenta:","Nº de Cuenta:","Nº de Compte:","Kontu zk.:"]
["INFORMACIÓN DEL CONSUMO ELÉCTRICO","INFORMACIÓN DEL CONSUMO ELÉCTRICO","INFORMACIÓ DEL CONSUM ELÈCTRIC","KONTSUMO ELEKTRIKOARI BURUZKO INFORMAZIOA"]
["ACTIVA","ACTIVA","ACTIVA","AKTIBO"]
["REACTIVA","REACTIVA","REACTIVA","ERREAKTIBOA"]
["MAXÍMETRO","MAXÍMETRO","MAXÍMETRE","MAXIMETROA"]
["Anterior","Anterior","Anterior","Aurrekoa"]
["Actual","Actual","Actual","Oraingoa"]
["Consumo","Consumo","Consum","Kontsumoa"]
["Fecha","Fecha","Data","Data "]
["  REAL","  REAL","  REAL","BENETAKOA"]
["DESTINO DEL IMPORTE DE LA FACTURA","DESTINO DEL IMPORTE DE LA FACTURA","DESTÍ DE L'IMPORT DE LA FACTURA","FAKTURAREN ZENBATEKOAREN XEDEA"]
["El importe de su factura, 54,16, es el siguiente:",{"$f":"\"El importe de su factura, \" & Data!B21 & \", es el siguiente:\"","v":"El importe de su factura, 54,16, es el siguiente:"},{"$f":"\"L'import de la seva factura, \" & Data!B21 & \", és el següent:\"","v":"L'import de la seva factura, 54,16, és el següent:"},{"$f":"\"Hauxe da zure fakturaren, \" & Data!B21 & \", zenbatekoa:\"","v":"Hauxe da zure fakturaren, 54,16, zenbatekoa:"}]
["A los importes indicados en el diagrama debe añadirse, en su caso el importe del alquiler de los equipos de medida y control: 12,33€",{"$f":"IF(Data!B46=0,\" \",\"A los importes indicados en el diagrama debe añadirse, en su caso el importe del alquiler de los equipos de medida y control: \" & Data!B46 &\"€\")","v":"A los importes indicados en el diagrama debe añadirse, en su caso el importe del alquiler de los equipos de medida y control: 12,33€"},{"$f":"IF(Data!B46=0,\" \",\"Als imports indicats en el diagrama s'ha d'afegir, en el seu cas el import del lloguer dels equips de mesura i control: \" & Data!B46 &\"€\")","v":"Als imports indicats en el diagrama s'ha d'afegir, en el seu cas el import del lloguer dels equips de mesura i control: 12,33€"},{"$f":"IF(Data!B46=0,\" \",\"Diagraman adierazitako zenbatekoei, hala badagokie, neurtzeko eta kontrolatzeko ekipamenduen alokairuari dagokion zenbatekoa gehitu behar zaie: \" & Data!B46 &\"€\")","v":"Diagraman adierazitako zenbatekoei, hala badagokie, neurtzeko eta kontrolatzeko ekipamenduen alokairuari dagokion zenbatekoa gehitu behar zaie: 12,33€"}]
[{"$error":"#DIV/0!"},{"$f":"\"Su consumo medio diario en el periodo facturado ha sido de:  \" &Bill!AD86 & \" kWh/día\"","v":{"$error":"#DIV/0!"}},{"$f":"\"El seu consum mitjà diari en el periode facturat ha sigut de:  \" &Bill!AD86 & \" kWh/dia\"","v":{"$error":"#DIV/0!"}},{"$f":"\"Hauxe izan da azken fakturazio-aldi honetan eguneko batez besteko kontsumoa:  \" &Bill!AD86 & \" kWh/eguna\"","v":{"$error":"#DIV/0!"}}]
["Su consumo medio diario en los últimos 14 meses ha sido de:","Su consumo medio diario en los últimos 14 meses ha sido de:","El seu consum mitjà diari en els últims 14 mesos ha sigut de:","Hauxe izan da azken 14 hilabeteetako eguneko batez besteko kontsumoa:"]
["Su consumo medio acumulado del último año ha sido de:  0 kWh/día",{"$f":"\"Su consumo medio acumulado del último año ha sido de:  \" &Bill!AD85 & \" kWh/día\"","v":"Su consumo medio acumulado del último año ha sido de:  0 kWh/día"},{"$f":"\"El seu consum mitjà acumulat del últim any ha sigut de:  \" &Bill!AD85 & \" kWh/dia\"","v":"El seu consum mitjà acumulat del últim any ha sigut de:  0 kWh/dia"},{"$f":"\"Hauxe izan da azken urtean metatutako batez besteko kontsumoa:  \" &Bill!AD85 & \" kWh/eguna\"","v":"Hauxe izan da azken urtean metatutako batez besteko kontsumoa:  0 kWh/eguna"}]
["DETALLE DE LA FACTURA","DETALLE DE LA FACTURA","DETALL DE LA FACTURA","FAKTURAREN XEHETASUNAK"]
["Término de Potencia","Término de Potencia","Terme de Potència   ","Potentzia-terminoa"]
["Precio (€ /kW/día)","Precio (€ /kW/día)","Preu (€ /kW/dia)","Prezioa (€ /kW/eguna)"]
["Días de factura","Días de factura","Dies de factura","Fakturaren egunak"]
["TOTAL","TOTAL","TOTAL","GUZTIRA"]
["Término de Energía","Término de Energía","Terme d'Energia","Energia-terminoa"]
["Precio (€ /kWh)","Precio (€ /kWh)","Preu (€ /kWh)","Prezioa (€ /kWh)"]
["Excesos de Reactiva","Excesos de Reactiva","Excessos de Reactiva","Gehiegizko erreaktiboa"]
["Excesos de Potencia","Excesos de Potencia","Excessos de Potència","Gehiegizko potentzia"]
[" Impuesto Electricidad"," Impuesto Electricidad"," Impost de l'Electricitat","Elektrizitatearen gaineko zerga"]
["        Descuento Exención Impuesto eléctrico","        Descuento Exención Impuesto eléctrico","        Descompte Exempció impost elèctric","     Deskontua elektrizitatearen gaineko zergaren salbuespenagatik"]
["Alquiler Equipo de medida","Alquiler Equipo de medida","Lloguer Equip de Mesura","Konketa alokatzea"]
["Base imponible","Base imponible","Base imposable","Zerga-oinarria"]
["Mezcla de producción del sistema eléctrico español","Mezcla de producción del sistema eléctrico español","Mescla de producció del sistema elèctric espanyol","Espainiako sistema elektrikoaren ekoizpeneko nahasketa"]
["Mezcla de producción de XXXXX","Mezcla de producción de XXXXX","Mescla de producció de XXXXX","XXXXXX delakoaren ekoizpen-nahasketa "]
["Renovable","Renovable","Renovable","Berriztagarria"]
["Cogeneración de Alta Eficiencia","Cogeneración de Alta Eficiencia","Cogeneració d'Alta Eficiència","Eraginkortasun handiko kongenerazioa"]
["Cogeneración","Cogeneración","Cogeneració","Kogenerazioa"]
["CC Gas Natural","CC Gas Natural","CC Gas Natural","Gas naturala (ziklo konbinatua)"]
["Carbón","Carbón","Carbó","Ikatza"]
["Fuel/Gas","Fuel/Gas","Fuel/Gas","Fuel-olioa/Gasa"]
["Nuclear","Nuclear","Nuclear","Nuklearra"]
["Otras","Otras","Altres","Beste"]
["Emisiones de CO2 (kg/kWh)  0,2 / Clasificación Energética D","Emisiones de CO2 (kg/kWh)  0,2 / Clasificación Energética D","Emissions de CO2 (kg/kWh)  0,2 / Classificació Energètica D","CO2 Isuriak (kg/kWh)  0,2 / D sailkapen Enegetikoa"]
["Residuos Radioactivos Alta Actividad (mg/kWh) 0,52 / Clasificación Energética  D","Residuos Radioactivos Alta Actividad (mg/kWh) 0,52 / Clasificación Energética  D","Residus Radioactius Alta Activitat (mg/kWh) 0,52 / Classificació Energètica  D","Aktibitate handiko hondakin erradiaktiboak (mg/kWh) 0,52 / D sailkapen Enegetikoa"]
["Emisiones de CO2 (kg/kWh)  0,2 / Clasificación Energética D","Emisiones de CO2 (kg/kWh)  0,2 / Clasificación Energética D","Emissions de CO2 (kg/kWh)  0,2 / Classificació Energètica D","CO2 Isuriak (kg/kWh)  0,2 / D sailkapen Enegetikoa"]
["Residuos Radioactivos Alta Actividad (mg/kWh) 0,52 / Clasificación Energética  D","Residuos Radioactivos Alta Actividad (mg/kWh) 0,52 / Clasificación Energética  D","Residus Radioactius Alta Activitat (mg/kWh) 0,51 / Classificació Energètica  D","Aktibitate handiko hondakin erradiaktiboak (mg/kWh) 0,52 / D sailkapen Enegetikoa"]
["XXXX · X-XXX · Calle · CP · Municipio · Inscrita en el Registro Mercantil de X, Tomo X, Folio X, Hoja X, Inscripción X.","XXXX · X-XXX · Calle · CP · Municipio · Inscrita en el Registro Mercantil de X, Tomo X, Folio X, Hoja X, Inscripción X.","XXXX · X-XXX · Carrer · CP · Municipi · Inscrita en el Registro Mercantil de X, Volum X, Foli X, Fulla X, Inscripció X.","XXXX · X-XXX · Calle · CP · Municipio · XX Merkataritza Erregistroan inskribatuta dago, XXX liburukia, XX folioa, XX orria, X. "]
["NIF:","NIF:","NIF:","IFZ:"]
["IVA","IVA","IVA","BEZ"]
["Precio (€/kVAr)","Precio (€/kVAr)","Preu (€/kVAr)","Prezioa (€ /kVAr)"]
[{"$f":"IF(Data!B191=0,\"\",IF(A$1=\"ca_ES\",C82,IF(A$1=\"es_ES\",B82,IF(A$1=\"eu_ES\",D82,\" \"))))","v":""},"Importe Concepto Repercutible:","Import Concepte Repercutible:","Zenbatekoa berrerabilgarriaren kontzeptua:"]
[{"$f":"IF(A$1=\"ca_ES\",C83,IF(A$1=\"es_ES\",B83,IF(A$1=\"eu_ES\",D83,\" \")))","v":"Importe"},"Importe","Import","Zenbatekoa"]
["Incentivos a las energías renovables, cogeneración y residuos","Incentivos a las energías renovables, cogeneración y residuos","Incentius a les energies renovables, cogeneració i residus","Energia berriztagarri, kogenerazio eta hondakinen pizgarriak"]
["Coste de redes de transporte y distribución","Coste de redes de transporte y distribución","Cost de xarxes de transport i distribució","Garraio- eta banaketa-sareen kostua"]
["Otros costes regulados ","Otros costes regulados ","Altres costos regulats ","Araututako beste kostu batzuk "]
["Costes Regulados","Costes Regulados","Costos Regulats","Araututako kostuak"]
["Impuestos","Impuestos","Impostos","Zergak"]
["Costes de Producción de Electricidad","Costes de Producción de Electricidad","Costos de Producció d'Electricitat","Elektrizitatea ekoizteko kostuak"]
[{"$f":"IF(A$1=\"ca_ES\",#REF!,IF(A$1=\"es_ES\",B90,IF(A$1=\"eu_ES\",D90,\" \")))","v":"HISTÓRICO DE CONSUMO"},"HISTÓRICO DE CONSUMO","HISTÒRIC DE CONSUM"," KONTSUMO HISTORIKOA "]
[]
[]
[{"$f":"IF(Data!B$189=\"No Informado\",IF(A1=\"ca_ES\",C93,IF(A1=\"eu_ES\",D93,B93)),\"\")","v":""},"No Informado","No informat","Jakinarazi gabe"]
[{"$f":"IF(Data!B$189=\"Electrónico\",IF(A1=\"ca_ES\",C94,IF(A1=\"eu_ES\",D94,B94)),\"\")","v":""},"Electrónico","Electrònic","Elektronikoak"]
[{"$f":"IF(Data!B$189=\"Mecánico\",IF(A1=\"ca_ES\",C95,IF(A1=\"eu_ES\",D95,B95)),\"\")","v":"Mecánico"},"Mecánico","Mecànic","Mekanikoa"]
[]
[{"$f":"IF(Bill!AD72=\"Ene.\",IF(A$1=\"ca_ES\",\"Gen.\"&MID(Bill!W72,5,2),IF(A$1=\"eu_ES\",\"Urt.\"&MID(Bill!W72,5,2),Bill!W72)),IF(Bill!AD72=\"Feb.\",IF(A$1=\"ca_ES\",\"Feb.\"&MID(Bill!W72,5,2),IF(A$1=\"eu_ES\",\"Ots.\"&MID(Bill!W72,5,2),Bill!W72)),IF(Bill!AD72=\"Mar.\",IF(A$1=\"ca_ES\",\"Mar.\"&MID(Bill!W72,5,2),IF(A$1=\"eu_ES\",\"Mar.\"&MID(Bill!W72,5,2),Bill!W72)),IF(Bill!AD72=\"Abr.\",IF(A$1=\"ca_ES\",\"Abr.\"&MID(Bill!W72,5,2),IF(A$1=\"eu_ES\",\"Api.\"&MID(Bill!W72,5,2),Bill!W72)),IF(Bill!AD72=\"May.\",IF(A$1=\"ca_ES\",\"Mai.\"&MID(Bill!W72,5,2),IF(A$1=\"eu_ES\",\"Mai.\"&MID(Bill!W72,5,2),Bill!W72)),IF(Bill!AD72=\"Jun.\",IF(A$1=\"ca_ES\",\"Jun.\"&MID(Bill!W72,5,2),IF(A$1=\"eu_ES\",\"Eka.\"&MID(Bill!W72,5,2),Bill!W72)),IF(Bill!AD72=\"Jul.\",IF(A$1=\"ca_ES\",\"Jul.\"&MID(Bill!W72,5,2),IF(A$1=\"eu_ES\",\"Uzt.\"&MID(Bill!W72,5,2),Bill!W72)),IF(Bill!AD72=\"Ago.\",IF(A$1=\"ca_ES\",\"Ago.\"&MID(Bill!W72,5,2),IF(A$1=\"eu_ES\",\"Abu.\"&MID(Bill!W72,5,2),Bill!W72)),IF(Bill!AD72=\"Sep.\",IF(A$1=\"ca_ES\",\"Set.\"&MID(Bill!W72,5,2),IF(A$1=\"eu_ES\",\"Ira.\"&MID(Bill!W72,5,2),Bill!W72)),IF(Bill!AD72=\"Oct.\",IF(A$1=\"ca_ES\",\"Oct.\"&MID(Bill!W72,5,2),IF(A$1=\"eu_ES\",\"Urr.\"&MID(Bill!W72,5,2),Bill!W72)),IF(Bill!AD72=\"Nov.\",IF(A$1=\"ca_ES\",\"Nov.\"&MID(Bill!W72,5,2),IF(A$1=\"eu_ES\",\"Aza.\"&MID(Bill!W72,5,2),Bill!W72)),IF(Bill!AD72=\"Dic.\",IF(A$1=\"ca_ES\",\"Des.\"&MID(Bill!W72,5,2),IF(A$1=\"eu_ES\",\"Abe.\"&MID(Bill!W72,5,2),Bill!W72)),\"\"))))))))))))","v":""}]
[{"$f":"IF(Bill!AD73=\"Ene.\",IF(A$1=\"ca_ES\",\"Gen.\"&MID(Bill!W73,5,2),IF(A$1=\"eu_ES\",\"Urt.\"&MID(Bill!W73,5,2),Bill!W73)),IF(Bill!AD73=\"Feb.\",IF(A$1=\"ca_ES\",\"Feb.\"&MID(Bill!W73,5,2),IF(A$1=\"eu_ES\",\"Ots.\"&MID(Bill!W73,5,2),Bill!W73)),IF(Bill!AD73=\"Mar.\",IF(A$1=\"ca_ES\",\"Mar.\"&MID(Bill!W73,5,2),IF(A$1=\"eu_ES\",\"Mar.\"&MID(Bill!W73,5,2),Bill!W73)),IF(Bill!AD73=\"Abr.\",IF(A$1=\"ca_ES\",\"Abr.\"&MID(Bill!W73,5,2),IF(A$1=\"eu_ES\",\"Api.\"&MID(Bill!W73,5,2),Bill!W73)),IF(Bill!AD73=\"May.\",IF(A$1=\"ca_ES\",\"Mai.\"&MID(Bill!W73,5,2),IF(A$1=\"eu_ES\",\"Mai.\"&MID(Bill!W73,5,2),Bill!W73)),IF(Bill!AD73=\"Jun.\",IF(A$1=\"ca_ES\",\"Jun.\"&MID(Bill!W73,5,2),IF(A$1=\"eu_ES\",\"Eka.\"&MID(Bill!W73,5,2),Bill!W73)),IF(Bill!AD73=\"Jul.\",IF(A$1=\"ca_ES\",\"Jul.\"&MID(Bill!W73,5,2),IF(A$1=\"eu_ES\",\"Uzt.\"&MID(Bill!W73,5,2),Bill!W73)),IF(Bill!AD73=\"Ago.\",IF(A$1=\"ca_ES\",\"Ago.\"&MID(Bill!W73,5,2),IF(A$1=\"eu_ES\",\"Abu.\"&MID(Bill!W73,5,2),Bill!W73)),IF(Bill!AD73=\"Sep.\",IF(A$1=\"ca_ES\",\"Set.\"&MID(Bill!W73,5,2),IF(A$1=\"eu_ES\",\"Ira.\"&MID(Bill!W73,5,2),Bill!W73)),IF(Bill!AD73=\"Oct.\",IF(A$1=\"ca_ES\",\"Oct.\"&MID(Bill!W73,5,2),IF(A$1=\"eu_ES\",\"Urr.\"&MID(Bill!W73,5,2),Bill!W73)),IF(Bill!AD73=\"Nov.\",IF(A$1=\"ca_ES\",\"Nov.\"&MID(Bill!W73,5,2),IF(A$1=\"eu_ES\",\"Aza.\"&MID(Bill!W73,5,2),Bill!W73)),IF(Bill!AD73=\"Dic.\",IF(A$1=\"ca_ES\",\"Des.\"&MID(Bill!W73,5,2),IF(A$1=\"eu_ES\",\"Abe.\"&MID(Bill!W73,5,2),Bill!W73)),\"\"))))))))))))","v":""}]
[{"$f":"IF(Bill!AD74=\"Ene.\",IF(A$1=\"ca_ES\",\"Gen.\"&MID(Bill!W74,5,2),IF(A$1=\"eu_ES\",\"Urt.\"&MID(Bill!W74,5,2),Bill!W74)),IF(Bill!AD74=\"Feb.\",IF(A$1=\"ca_ES\",\"Feb.\"&MID(Bill!W74,5,2),IF(A$1=\"eu_ES\",\"Ots.\"&MID(Bill!W74,5,2),Bill!W74)),IF(Bill!AD74=\"Mar.\",IF(A$1=\"ca_ES\",\"Mar.\"&MID(Bill!W74,5,2),IF(A$1=\"eu_ES\",\"Mar.\"&MID(Bill!W74,5,2),Bill!W74)),IF(Bill!AD74=\"Abr.\",IF(A$1=\"ca_ES\",\"Abr.\"&MID(Bill!W74,5,2),IF(A$1=\"eu_ES\",\"Api.\"&MID(Bill!W74,5,2),Bill!W74)),IF(Bill!AD74=\"May.\",IF(A$1=\"ca_ES\",\"Mai.\"&MID(Bill!W74,5,2),IF(A$1=\"eu_ES\",\"Mai.\"&MID(Bill!W74,5,2),Bill!W74)),IF(Bill!AD74=\"Jun.\",IF(A$1=\"ca_ES\",\"Jun.\"&MID(Bill!W74,5,2),IF(A$1=\"eu_ES\",\"Eka.\"&MID(Bill!W74,5,2),Bill!W74)),IF(Bill!AD74=\"Jul.\",IF(A$1=\"ca_ES\",\"Jul.\"&MID(Bill!W74,5,2),IF(A$1=\"eu_ES\",\"Uzt.\"&MID(Bill!W74,5,2),Bill!W74)),IF(Bill!AD74=\"Ago.\",IF(A$1=\"ca_ES\",\"Ago.\"&MID(Bill!W74,5,2),IF(A$1=\"eu_ES\",\"Abu.\"&MID(Bill!W74,5,2),Bill!W74)),IF(Bill!AD74=\"Sep.\",IF(A$1=\"ca_ES\",\"Set.\"&MID(Bill!W74,5,2),IF(A$1=\"eu_ES\",\"Ira.\"&MID(Bill!W74,5,2),Bill!W74)),IF(Bill!AD74=\"Oct.\",IF(A$1=\"ca_ES\",\"Oct.\"&MID(Bill!W74,5,2),IF(A$1=\"eu_ES\",\"Urr.\"&MID(Bill!W74,5,2),Bill!W74)),IF(Bill!AD74=\"Nov.\",IF(A$1=\"ca_ES\",\"Nov.\"&MID(Bill!W74,5,2),IF(A$1=\"eu_ES\",\"Aza.\"&MID(Bill!W74,5,2),Bill!W74)),IF(Bill!AD74=\"Dic.\",IF(A$1=\"ca_ES\",\"Des.\"&MID(Bill!W74,5,2),IF(A$1=\"eu_ES\",\"Abe.\"&MID(Bill!W74,5,2),Bill!W74)),\"\"))))))))))))","v":""}]
[{"$f":"IF(Bill!AD75=\"Ene.\",IF(A$1=\"ca_ES\",\"Gen.\"&MID(Bill!W75,5,2),IF(A$1=\"eu_ES\",\"Urt.\"&MID(Bill!W75,5,2),Bill!W75)),IF(Bill!AD75=\"Feb.\",IF(A$1=\"ca_ES\",\"Feb.\"&MID(Bill!W75,5,2),IF(A$1=\"eu_ES\",\"Ots.\"&MID(Bill!W75,5,2),Bill!W75)),IF(Bill!AD75=\"Mar.\",IF(A$1=\"ca_ES\",\"Mar.\"&MID(Bill!W75,5,2),IF(A$1=\"eu_ES\",\"Mar.\"&MID(Bill!W75,5,2),Bill!W75)),IF(Bill!AD75=\"Abr.\",IF(A$1=\"ca_ES\",\"Abr.\"&MID(Bill!W75,5,2),IF(A$1=\"eu_ES\",\"Api.\"&MID(Bill!W75,5,2),Bill!W75)),IF(Bill!AD75=\"May.\",IF(A$1=\"ca_ES\",\"Mai.\"&MID(Bill!W75,5,2),IF(A$1=\"eu_ES\",\"Mai.\"&MID(Bill!W75,5,2),Bill!W75)),IF(Bill!AD75=\"Jun.\",IF(A$1=\"ca_ES\",\"Jun.\"&MID(Bill!W75,5,2),IF(A$1=\"eu_ES\",\"Eka.\"&MID(Bill!W75,5,2),Bill!W75)),IF(Bill!AD75=\"Jul.\",IF(A$1=\"ca_ES\",\"Jul.\"&MID(Bill!W75,5,2),IF(A$1=\"eu_ES\",\"Uzt.\"&MID(Bill!W75,5,2),Bill!W75)),IF(Bill!AD75=\"Ago.\",IF(A$1=\"ca_ES\",\"Ago.\"&MID(Bill!W75,5,2),IF(A$1=\"eu_ES\",\"Abu.\"&MID(Bill!W75,5,2),Bill!W75)),IF(Bill!AD75=\"Sep.\",IF(A$1=\"ca_ES\",\"Set.\"&MID(Bill!W75,5,2),IF(A$1=\"eu_ES\",\"Ira.\"&MID(Bill!W75,5,2),Bill!W75)),IF(Bill!AD75=\"Oct.\",IF(A$1=\"ca_ES\",\"Oct.\"&MID(Bill!W75,5,2),IF(A$1=\"eu_ES\",\"Urr.\"&MID(Bill!W75,5,2),Bill!W75)),IF(Bill!AD75=\"Nov.\",IF(A$1=\"ca_ES\",\"Nov.\"&MID(Bill!W75,5,2),IF(A$1=\"eu_ES\",\"Aza.\"&MID(Bill!W75,5,2),Bill!W75)),IF(Bill!AD75=\"Dic.\",IF(A$1=\"ca_ES\",\"Des.\"&MID(Bill!W75,5,2),IF(A$1=\"eu_ES\",\"Abe.\"&MID(Bill!W75,5,2),Bill!W75)),\"\"))))))))))))","v":""}]
[{"$f":"IF(Bill!AD76=\"Ene.\",IF(A$1=\"ca_ES\",\"Gen.\"&MID(Bill!W76,5,2),IF(A$1=\"eu_ES\",\"Urt.\"&MID(Bill!W76,5,2),Bill!W76)),IF(Bill!AD76=\"Feb.\",IF(A$1=\"ca_ES\",\"Feb.\"&MID(Bill!W76,5,2),IF(A$1=\"eu_ES\",\"Ots.\"&MID(Bill!W76,5,2),Bill!W76)),IF(Bill!AD76=\"Mar.\",IF(A$1=\"ca_ES\",\"Mar.\"&MID(Bill!W76,5,2),IF(A$1=\"eu_ES\",\"Mar.\"&MID(Bill!W76,5,2),Bill!W76)),IF(Bill!AD76=\"Abr.\",IF(A$1=\"ca_ES\",\"Abr.\"&MID(Bill!W76,5,2),IF(A$1=\"eu_ES\",\"Api.\"&MID(Bill!W76,5,2),Bill!W76)),IF(Bill!AD76=\"May.\",IF(A$1=\"ca_ES\",\"Mai.\"&MID(Bill!W76,5,2),IF(A$1=\"eu_ES\",\"Mai.\"&MID(Bill!W76,5,2),Bill!W76)),IF(Bill!AD76=\"Jun.\",IF(A$1=\"ca_ES\",\"Jun.\"&MID(Bill!W76,5,2),IF(A$1=\"eu_ES\",\"Eka.\"&MID(Bill!W76,5,2),Bill!W76)),IF(Bill!AD76=\"Jul.\",IF(A$1=\"ca_ES\",\"Jul.\"&MID(Bill!W76,5,2),IF(A$1=\"eu_ES\",\"Uzt.\"&MID(Bill!W76,5,2),Bill!W76)),IF(Bill!AD76=\"Ago.\",IF(A$1=\"ca_ES\",\"Ago.\"&MID(Bill!W76,5,2),IF(A$1=\"eu_ES\",\"Abu.\"&MID(Bill!W76,5,2),Bill!W76)),IF(Bill!AD76=\"Sep.\",IF(A$1=\"ca_ES\",\"Set.\"&MID(Bill!W76,5,2),IF(A$1=\"eu_ES\",\"Ira.\"&MID(Bill!W76,5,2),Bill!W76)),IF(Bill!AD76=\"Oct.\",IF(A$1=\"ca_ES\",\"Oct.\"&MID(Bill!W76,5,2),IF(A$1=\"eu_ES\",\"Urr.\"&MID(Bill!W76,5,2),Bill!W76)),IF(Bill!AD76=\"Nov.\",IF(A$1=\"ca_ES\",\"Nov.\"&MID(Bill!W76,5,2),IF(A$1=\"eu_ES\",\"Aza.\"&MID(Bill!W76,5,2),Bill!W76)),IF(Bill!AD76=\"Dic.\",IF(A$1=\"ca_ES\",\"Des.\"&MID(Bill!W76,5,2),IF(A$1=\"eu_ES\",\"Abe.\"&MID(Bill!W76,5,2),Bill!W76)),\"\"))))))))))))","v":""}]
[{"$f":"IF(Bill!AD77=\"Ene.\",IF(A$1=\"ca_ES\",\"Gen.\"&MID(Bill!W77,5,2),IF(A$1=\"eu_ES\",\"Urt.\"&MID(Bill!W77,5,2),Bill!W77)),IF(Bill!AD77=\"Feb.\",IF(A$1=\"ca_ES\",\"Feb.\"&MID(Bill!W77,5,2),IF(A$1=\"eu_ES\",\"Ots.\"&MID(Bill!W77,5,2),Bill!W77)),IF(Bill!AD77=\"Mar.\",IF(A$1=\"ca_ES\",\"Mar.\"&MID(Bill!W77,5,2),IF(A$1=\"eu_ES\",\"Mar.\"&MID(Bill!W77,5,2),Bill!W77)),IF(Bill!AD77=\"Abr.\",IF(A$1=\"ca_ES\",\"Abr.\"&MID(Bill!W77,5,2),IF(A$1=\"eu_ES\",\"Api.\"&MID(Bill!W77,5,2),Bill!W77)),IF(Bill!AD77=\"May.\",IF(A$1=\"ca_ES\",\"Mai.\"&MID(Bill!W77,5,2),IF(A$1=\"eu_ES\",\"Mai.\"&MID(Bill!W77,5,2),Bill!W77)),IF(Bill!AD77=\"Jun.\",IF(A$1=\"ca_ES\",\"Jun.\"&MID(Bill!W77,5,2),IF(A$1=\"eu_ES\",\"Eka.\"&MID(Bill!W77,5,2),Bill!W77)),IF(Bill!AD77=\"Jul.\",IF(A$1=\"ca_ES\",\"Jul.\"&MID(Bill!W77,5,2),IF(A$1=\"eu_ES\",\"Uzt.\"&MID(Bill!W77,5,2),Bill!W77)),IF(Bill!AD77=\"Ago.\",IF(A$1=\"ca_ES\",\"Ago.\"&MID(Bill!W77,5,2),IF(A$1=\"eu_ES\",\"Abu.\"&MID(Bill!W77,5,2),Bill!W77)),IF(Bill!AD77=\"Sep.\",IF(A$1=\"ca_ES\",\"Set.\"&MID(Bill!W77,5,2),IF(A$1=\"eu_ES\",\"Ira.\"&MID(Bill!W77,5,2),Bill!W77)),IF(Bill!AD77=\"Oct.\",IF(A$1=\"ca_ES\",\"Oct.\"&MID(Bill!W77,5,2),IF(A$1=\"eu_ES\",\"Urr.\"&MID(Bill!W77,5,2),Bill!W77)),IF(Bill!AD77=\"Nov.\",IF(A$1=\"ca_ES\",\"Nov.\"&MID(Bill!W77,5,2),IF(A$1=\"eu_ES\",\"Aza.\"&MID(Bill!W77,5,2),Bill!W77)),IF(Bill!AD77=\"Dic.\",IF(A$1=\"ca_ES\",\"Des.\"&MID(Bill!W77,5,2),IF(A$1=\"eu_ES\",\"Abe.\"&MID(Bill!W77,5,2),Bill!W77)),\"\"))))))))))))","v":""}]
[{"$f":"IF(Bill!AD78=\"Ene.\",IF(A$1=\"ca_ES\",\"Gen.\"&MID(Bill!W78,5,2),IF(A$1=\"eu_ES\",\"Urt.\"&MID(Bill!W78,5,2),Bill!W78)),IF(Bill!AD78=\"Feb.\",IF(A$1=\"ca_ES\",\"Feb.\"&MID(Bill!W78,5,2),IF(A$1=\"eu_ES\",\"Ots.\"&MID(Bill!W78,5,2),Bill!W78)),IF(Bill!AD78=\"Mar.\",IF(A$1=\"ca_ES\",\"Mar.\"&MID(Bill!W78,5,2),IF(A$1=\"eu_ES\",\"Mar.\"&MID(Bill!W78,5,2),Bill!W78)),IF(Bill!AD78=\"Abr.\",IF(A$1=\"ca_ES\",\"Abr.\"&MID(Bill!W78,5,2),IF(A$1=\"eu_ES\",\"Api.\"&MID(Bill!W78,5,2),Bill!W78)),IF(Bill!AD78=\"May.\",IF(A$1=\"ca_ES\",\"Mai.\"&MID(Bill!W78,5,2),IF(A$1=\"eu_ES\",\"Mai.\"&MID(Bill!W78,5,2),Bill!W78)),IF(Bill!AD78=\"Jun.\",IF(A$1=\"ca_ES\",\"Jun.\"&MID(Bill!W78,5,2),IF(A$1=\"eu_ES\",\"Eka.\"&MID(Bill!W78,5,2),Bill!W78)),IF(Bill!AD78=\"Jul.\",IF(A$1=\"ca_ES\",\"Jul.\"&MID(Bill!W78,5,2),IF(A$1=\"eu_ES\",\"Uzt.\"&MID(Bill!W78,5,2),Bill!W78)),IF(Bill!AD78=\"Ago.\",IF(A$1=\"ca_ES\",\"Ago.\"&MID(Bill!W78,5,2),IF(A$1=\"eu_ES\",\"Abu.\"&MID(Bill!W78,5,2),Bill!W78)),IF(Bill!AD78=\"Sep.\",IF(A$1=\"ca_ES\",\"Set.\"&MID(Bill!W78,5,2),IF(A$1=\"eu_ES\",\"Ira.\"&MID(Bill!W78,5,2),Bill!W78)),IF(Bill!AD78=\"Oct.\",IF(A$1=\"ca_ES\",\"Oct.\"&MID(Bill!W78,5,2),IF(A$1=\"eu_ES\",\"Urr.\"&MID(Bill!W78,5,2),Bill!W78)),IF(Bill!AD78=\"Nov.\",IF(A$1=\"ca_ES\",\"Nov.\"&MID(Bill!W78,5,2),IF(A$1=\"eu_ES\",\"Aza.\"&MID(Bill!W78,5,2),Bill!W78)),IF(Bill!AD78=\"Dic.\",IF(A$1=\"ca_ES\",\"Des.\"&MID(Bill!W78,5,2),IF(A$1=\"eu_ES\",\"Abe.\"&MID(Bill!W78,5,2),Bill!W78)),\"\"))))))))))))","v":""}]
[{"$f":"IF(Bill!AD79=\"Ene.\",IF(A$1=\"ca_ES\",\"Gen.\"&MID(Bill!W79,5,2),IF(A$1=\"eu_ES\",\"Urt.\"&MID(Bill!W79,5,2),Bill!W79)),IF(Bill!AD79=\"Feb.\",IF(A$1=\"ca_ES\",\"Feb.\"&MID(Bill!W79,5,2),IF(A$1=\"eu_ES\",\"Ots.\"&MID(Bill!W79,5,2),Bill!W79)),IF(Bill!AD79=\"Mar.\",IF(A$1=\"ca_ES\",\"Mar.\"&MID(Bill!W79,5,2),IF(A$1=\"eu_ES\",\"Mar.\"&MID(Bill!W79,5,2),Bill!W79)),IF(Bill!AD79=\"Abr.\",IF(A$1=\"ca_ES\",\"Abr.\"&MID(Bill!W79,5,2),IF(A$1=\"eu_ES\",\"Api.\"&MID(Bill!W79,5,2),Bill!W79)),IF(Bill!AD79=\"May.\",IF(A$1=\"ca_ES\",\"Mai.\"&MID(Bill!W79,5,2),IF(A$1=\"eu_ES\",\"Mai.\"&MID(Bill!W79,5,2),Bill!W79)),IF(Bill!AD79=\"Jun.\",IF(A$1=\"ca_ES\",\"Jun.\"&MID(Bill!W79,5,2),IF(A$1=\"eu_ES\",\"Eka.\"&MID(Bill!W79,5,2),Bill!W79)),IF(Bill!AD79=\"Jul.\",IF(A$1=\"ca_ES\",\"Jul.\"&MID(Bill!W79,5,2),IF(A$1=\"eu_ES\",\"Uzt.\"&MID(Bill!W79,5,2),Bill!W79)),IF(Bill!AD79=\"Ago.\",IF(A$1=\"ca_ES\",\"Ago.\"&MID(Bill!W79,5,2),IF(A$1=\"eu_ES\",\"Abu.\"&MID(Bill!W79,5,2),Bill!W79)),IF(Bill!AD79=\"Sep.\",IF(A$1=\"ca_ES\",\"Set.\"&MID(Bill!W79,5,2),IF(A$1=\"eu_ES\",\"Ira.\"&MID(Bill!W79,5,2),Bill!W79)),IF(Bill!AD79=\"Oct.\",IF(A$1=\"ca_ES\",\"Oct.\"&MID(Bill!W79,5,2),IF(A$1=\"eu_ES\",\"Urr.\"&MID(Bill!W79,5,2),Bill!W79)),IF(Bill!AD79=\"Nov.\",IF(A$1=\"ca_ES\",\"Nov.\"&MID(Bill!W79,5,2),IF(A$1=\"eu_ES\",\"Aza.\"&MID(Bill!W79,5,2),Bill!W79)),IF(Bill!AD79=\"Dic.\",IF(A$1=\"ca_ES\",\"Des.\"&MID(Bill!W79,5,2),IF(A$1=\"eu_ES\",\"Abe.\"&MID(Bill!W79,5,2),Bill!W79)),\"\"))))))))))))","v":""}]
[{"$f":"IF(Bill!AD80=\"Ene.\",IF(A$1=\"ca_ES\",\"Gen.\"&MID(Bill!W80,5,2),IF(A$1=\"eu_ES\",\"Urt.\"&MID(Bill!W80,5,2),Bill!W80)),IF(Bill!AD80=\"Feb.\",IF(A$1=\"ca_ES\",\"Feb.\"&MID(Bill!W80,5,2),IF(A$1=\"eu_ES\",\"Ots.\"&MID(Bill!W80,5,2),Bill!W80)),IF(Bill!AD80=\"Mar.\",IF(A$1=\"ca_ES\",\"Mar.\"&MID(Bill!W80,5,2),IF(A$1=\"eu_ES\",\"Mar.\"&MID(Bill!W80,5,2),Bill!W80)),IF(Bill!AD80=\"Abr.\",IF(A$1=\"ca_ES\",\"Abr.\"&MID(Bill!W80,5,2),IF(A$1=\"eu_ES\",\"Api.\"&MID(Bill!W80,5,2),Bill!W80)),IF(Bill!AD80=\"May.\",IF(A$1=\"ca_ES\",\"Mai.\"&MID(Bill!W80,5,2),IF(A$1=\"eu_ES\",\"Mai.\"&MID(Bill!W80,5,2),Bill!W80)),IF(Bill!AD80=\"Jun.\",IF(A$1=\"ca_ES\",\"Jun.\"&MID(Bill!W80,5,2),IF(A$1=\"eu_ES\",\"Eka.\"&MID(Bill!W80,5,2),Bill!W80)),IF(Bill!AD80=\"Jul.\",IF(A$1=\"ca_ES\",\"Jul.\"&MID(Bill!W80,5,2),IF(A$1=\"eu_ES\",\"Uzt.\"&MID(Bill!W80,5,2),Bill!W80)),IF(Bill!AD80=\"Ago.\",IF(A$1=\"ca_ES\",\"Ago.\"&MID(Bill!W80,5,2),IF(A$1=\"eu_ES\",\"Abu.\"&MID(Bill!W80,5,2),Bill!W80)),IF(Bill!AD80=\"Sep.\",IF(A$1=\"ca_ES\",\"Set.\"&MID(Bill!W80,5,2),IF(A$1=\"eu_ES\",\"Ira.\"&MID(Bill!W80,5,2),Bill!W80)),IF(Bill!AD80=\"Oct.\",IF(A$1=\"ca_ES\",\"Oct.\"&MID(Bill!W80,5,2),IF(A$1=\"eu_ES\",\"Urr.\"&MID(Bill!W80,5,2),Bill!W80)),IF(Bill!AD80=\"Nov.\",IF(A$1=\"ca_ES\",\"Nov.\"&MID(Bill!W80,5,2),IF(A$1=\"eu_ES\",\"Aza.\"&MID(Bill!W80,5,2),Bill!W80)),IF(Bill!AD80=\"Dic.\",IF(A$1=\"ca_ES\",\"Des.\"&MID(Bill!W80,5,2),IF(A$1=\"eu_ES\",\"Abe.\"&MID(Bill!W80,5,2),Bill!W80)),\"\"))))))))))))","v":""}]
[{"$f":"IF(Bill!AD81=\"Ene.\",IF(A$1=\"ca_ES\",\"Gen.\"&MID(Bill!W81,5,2),IF(A$1=\"eu_ES\",\"Urt.\"&MID(Bill!W81,5,2),Bill!W81)),IF(Bill!AD81=\"Feb.\",IF(A$1=\"ca_ES\",\"Feb.\"&MID(Bill!W81,5,2),IF(A$1=\"eu_ES\",\"Ots.\"&MID(Bill!W81,5,2),Bill!W81)),IF(Bill!AD81=\"Mar.\",IF(A$1=\"ca_ES\",\"Mar.\"&MID(Bill!W81,5,2),IF(A$1=\"eu_ES\",\"Mar.\"&MID(Bill!W81,5,2),Bill!W81)),IF(Bill!AD81=\"Abr.\",IF(A$1=\"ca_ES\",\"Abr.\"&MID(Bill!W81,5,2),IF(A$1=\"eu_ES\",\"Api.\"&MID(Bill!W81,5,2),Bill!W81)),IF(Bill!AD81=\"May.\",IF(A$1=\"ca_ES\",\"Mai.\"&MID(Bill!W81,5,2),IF(A$1=\"eu_ES\",\"Mai.\"&MID(Bill!W81,5,2),Bill!W81)),IF(Bill!AD81=\"Jun.\",IF(A$1=\"ca_ES\",\"Jun.\"&MID(Bill!W81,5,2),IF(A$1=\"eu_ES\",\"Eka.\"&MID(Bill!W81,5,2),Bill!W81)),IF(Bill!AD81=\"Jul.\",IF(A$1=\"ca_ES\",\"Jul.\"&MID(Bill!W81,5,2),IF(A$1=\"eu_ES\",\"Uzt.\"&MID(Bill!W81,5,2),Bill!W81)),IF(Bill!AD81=\"Ago.\",IF(A$1=\"ca_ES\",\"Ago.\"&MID(Bill!W81,5,2),IF(A$1=\"eu_ES\",\"Abu.\"&MID(Bill!W81,5,2),Bill!W81)),IF(Bill!AD81=\"Sep.\",IF(A$1=\"ca_ES\",\"Set.\"&MID(Bill!W81,5,2),IF(A$1=\"eu_ES\",\"Ira.\"&MID(Bill!W81,5,2),Bill!W81)),IF(Bill!AD81=\"Oct.\",IF(A$1=\"ca_ES\",\"Oct.\"&MID(Bill!W81,5,2),IF(A$1=\"eu_ES\",\"Urr.\"&MID(Bill!W81,5,2),Bill!W81)),IF(Bill!AD81=\"Nov.\",IF(A$1=\"ca_ES\",\"Nov.\"&MID(Bill!W81,5,2),IF(A$1=\"eu_ES\",\"Aza.\"&MID(Bill!W81,5,2),Bill!W81)),IF(Bill!AD81=\"Dic.\",IF(A$1=\"ca_ES\",\"Des.\"&MID(Bill!W81,5,2),IF(A$1=\"eu_ES\",\"Abe.\"&MID(Bill!W81,5,2),Bill!W81)),\"\"))))))))))))","v":""}]
[{"$f":"IF(Bill!AD82=\"Ene.\",IF(A$1=\"ca_ES\",\"Gen.\"&MID(Bill!W82,5,2),IF(A$1=\"eu_ES\",\"Urt.\"&MID(Bill!W82,5,2),Bill!W82)),IF(Bill!AD82=\"Feb.\",IF(A$1=\"ca_ES\",\"Feb.\"&MID(Bill!W82,5,2),IF(A$1=\"eu_ES\",\"Ots.\"&MID(Bill!W82,5,2),Bill!W82)),IF(Bill!AD82=\"Mar.\",IF(A$1=\"ca_ES\",\"Mar.\"&MID(Bill!W82,5,2),IF(A$1=\"eu_ES\",\"Mar.\"&MID(Bill!W82,5,2),Bill!W82)),IF(Bill!AD82=\"Abr.\",IF(A$1=\"ca_ES\",\"Abr.\"&MID(Bill!W82,5,2),IF(A$1=\"eu_ES\",\"Api.\"&MID(Bill!W82,5,2),Bill!W82)),IF(Bill!AD82=\"May.\",IF(A$1=\"ca_ES\",\"Mai.\"&MID(Bill!W82,5,2),IF(A$1=\"eu_ES\",\"Mai.\"&MID(Bill!W82,5,2),Bill!W82)),IF(Bill!AD82=\"Jun.\",IF(A$1=\"ca_ES\",\"Jun.\"&MID(Bill!W82,5,2),IF(A$1=\"eu_ES\",\"Eka.\"&MID(Bill!W82,5,2),Bill!W82)),IF(Bill!AD82=\"Jul.\",IF(A$1=\"ca_ES\",\"Jul.\"&MID(Bill!W82,5,2),IF(A$1=\"eu_ES\",\"Uzt.\"&MID(Bill!W82,5,2),Bill!W82)),IF(Bill!AD82=\"Ago.\",IF(A$1=\"ca_ES\",\"Ago.\"&MID(Bill!W82,5,2),IF(A$1=\"eu_ES\",\"Abu.\"&MID(Bill!W82,5,2),Bill!W82)),IF(Bill!AD82=\"Sep.\",IF(A$1=\"ca_ES\",\"Set.\"&MID(Bill!W82,5,2),IF(A$1=\"eu_ES\",\"Ira.\"&MID(Bill!W82,5,2),Bill!W82)),IF(Bill!AD82=\"Oct.\",IF(A$1=\"ca_ES\",\"Oct.\"&MID(Bill!W82,5,2),IF(A$1=\"eu_ES\",\"Urr.\"&MID(Bill!W82,5,2),Bill!W82)),IF(Bill!AD82=\"Nov.\",IF(A$1=\"ca_ES\",\"Nov.\"&MID(Bill!W82,5,2),IF(A$1=\"eu_ES\",\"Aza.\"&MID(Bill!W82,5,2),Bill!W82)),IF(Bill!AD82=\"Dic.\",IF(A$1=\"ca_ES\",\"Des.\"&MID(Bill!W82,5,2),IF(A$1=\"eu_ES\",\"Abe.\"&MID(Bill!W82,5,2),Bill!W82)),\"\"))))))))))))","v":""}]
[{"$f":"IF(Bill!AD83=\"Ene.\",IF(A$1=\"ca_ES\",\"Gen.\"&MID(Bill!W83,5,2),IF(A$1=\"eu_ES\",\"Urt.\"&MID(Bill!W83,5,2),Bill!W83)),IF(Bill!AD83=\"Feb.\",IF(A$1=\"ca_ES\",\"Feb.\"&MID(Bill!W83,5,2),IF(A$1=\"eu_ES\",\"Ots.\"&MID(Bill!W83,5,2),Bill!W83)),IF(Bill!AD83=\"Mar.\",IF(A$1=\"ca_ES\",\"Mar.\"&MID(Bill!W83,5,2),IF(A$1=\"eu_ES\",\"Mar.\"&MID(Bill!W83,5,2),Bill!W83)),IF(Bill!AD83=\"Abr.\",IF(A$1=\"ca_ES\",\"Abr.\"&MID(Bill!W83,5,2),IF(A$1=\"eu_ES\",\"Api.\"&MID(Bill!W83,5,2),Bill!W83)),IF(Bill!AD83=\"May.\",IF(A$1=\"ca_ES\",\"Mai.\"&MID(Bill!W83,5,2),IF(A$1=\"eu_ES\",\"Mai.\"&MID(Bill!W83,5,2),Bill!W83)),IF(Bill!AD83=\"Jun.\",IF(A$1=\"ca_ES\",\"Jun.\"&MID(Bill!W83,5,2),IF(A$1=\"eu_ES\",\"Eka.\"&MID(Bill!W83,5,2),Bill!W83)),IF(Bill!AD83=\"Jul.\",IF(A$1=\"ca_ES\",\"Jul.\"&MID(Bill!W83,5,2),IF(A$1=\"eu_ES\",\"Uzt.\"&MID(Bill!W83,5,2),Bill!W83)),IF(Bill!AD83=\"Ago.\",IF(A$1=\"ca_ES\",\"Ago.\"&MID(Bill!W83,5,2),IF(A$1=\"eu_ES\",\"Abu.\"&MID(Bill!W83,5,2),Bill!W83)),IF(Bill!AD83=\"Sep.\",IF(A$1=\"ca_ES\",\"Set.\"&MID(Bill!W83,5,2),IF(A$1=\"eu_ES\",\"Ira.\"&MID(Bill!W83,5,2),Bill!W83)),IF(Bill!AD83=\"Oct.\",IF(A$1=\"ca_ES\",\"Oct.\"&MID(Bill!W83,5,2),IF(A$1=\"eu_ES\",\"Urr.\"&MID(Bill!W83,5,2),Bill!W83)),IF(Bill!AD83=\"Nov.\",IF(A$1=\"ca_ES\",\"Nov.\"&MID(Bill!W83,5,2),IF(A$1=\"eu_ES\",\"Aza.\"&MID(Bill!W83,5,2),Bill!W83)),IF(Bill!AD83=\"Dic.\",IF(A$1=\"ca_ES\",\"Des.\"&MID(Bill!W83,5,2),IF(A$1=\"eu_ES\",\"Abe.\"&MID(Bill!W83,5,2),Bill!W83)),\"\"))))))))))))","v":""}]
[]
["Indemnización",{"$f":"IF(A$1=\"ca_ES\",D110,IF(A$1=\"es_ES\",C110,IF(A$1=\"eu_ES\",E110,\" \")))","v":"Indemnización"},"Indemnización","Indemnització","Indemnización"]
["Derechos de extensión","Derechos de extensión","Derechos de extensión","Drets d'extensió","Derechos de extensión"]
["Derechos de acceso","Derechos de acceso","Derechos de acceso","Drets d'accés","Derechos de acceso"]
["Derechos de enganche","Derechos de enganche","Derechos de enganche","Drets de connexió","Derechos de enganche"]
["Derechos de verificación","Derechos de verificación","Derechos de verificación","Drets de verificació","Derechos de verificación"]
["Gastos de anulación de contratos","Gastos de anulación de contratos","Gastos de anulación de contratos","Despeses d'anulació de contracte","Gastos de anulación de contratos"]
["Actuaciones en la medida","Actuaciones en la medida","Actuaciones en la medida","Actuacions en la mesura","Actuaciones en la medida"]
["Reparametrización de la medida","Reparametrización de la medida","Reparametrización de la medida","Reparametrització de la mesura","Reparametrización de la medida"]
["Intereses de demora","Intereses de demora","Intereses de demora","Interesos de demora","Intereses de demora"]
["Verificación de Equipos de Medida","Verificación de Equipos de Medida","Verificación de Equipos de Medida","Verificació d'Equips de Mesura","Verificación de Equipos de Medida"]
["Derechos de Reconexión","Derechos de Reconexión","Derechos de Reconexión","Drets de reconnexió","Derechos de Reconexión"]
["Gastos de acometida","Gastos de acometida","Gastos de acometida","Despeses d'escomesa","Gastos de acometida"]
["Abonos","Abonos","Abonos","Abonaments","Abonos"]
["Abono por calidad de suministro","Abono por calidad de suministro","Abono por calidad de suministro","Abonament per qualitat de subministre","Abono por calidad de suministro"]
["Abono por calidad individual","Abono por calidad individual","Abono por calidad individual","Abonament per qualitat individual","Abono por calidad individual"]
["Coste de reposición","Coste de reposición","Coste de reposición","Cost de reposició","Coste de reposición"]
["Supervisión instalaciones cedidas","Supervisión instalaciones cedidas","Supervisión instalaciones cedidas","Supervisió d'instal·lacions  cedides","Supervisión instalaciones cedidas"]
["Coste de reconexión a petición de comercializador","Coste de reconexión a petición de comercializador","Coste de reconexión a petición de comercializador","Cost de reconnexió a petició del comercialitzador","Coste de reconexión a petición de comercializador"]
["Recargo fraccionado por refacturación (Ordren IET/843/2012) del cuarto trimestre del 2011","Recargo fraccionado por refacturación (Ordren IET/843/2012) del cuarto trimestre del 2011","Recargo fraccionado por refacturación (Ordren IET/843/2012) del cuarto trimestre del 2011","Recàrrec fraccionat per refacturació (Ordre IET/843/2012) del quart trimestre del 2011","Recargo fraccionado por refacturación (Ordren IET/843/2012) del cuarto trimestre del 2011"]
["Recargo fraccionado por refacturación  (Ordren IET/843/2012) del primer trimestre del 2012","Recargo fraccionado por refacturación  (Ordren IET/843/2012) del primer trimestre del 2012","Recargo fraccionado por refacturación  (Ordren IET/843/2012) del primer trimestre del 2012","Recàrrec fraccionat per refacturació (Ordre IET/843/2012) del primer trimestre del 2012","Recargo fraccionado por refacturación  (Ordren IET/843/2012) del primer trimestre del 2012"]
["Recargo fraccionado por refacturación (Ordren IET/843/2012) de abril del 2012","Recargo fraccionado por refacturación (Ordren IET/843/2012) de abril del 2012","Recargo fraccionado por refacturación (Ordren IET/843/2012) de abril del 2012","Recàrrec fraccionat per refacturació (Ordre IET/843/2012) d'abril del 2012","Recargo fraccionado por refacturación (Ordren IET/843/2012) de abril del 2012"]
["Cargo Fijo Autoconsumo","Cargo Fijo Autoconsumo","Cargo Fijo Autoconsumo","Càrrec Fixe  Autoconsum","Cargo Fijo Autoconsumo"]
["Cargo Variable Autoconsumo","Cargo Variable Autoconsumo","Cargo Variable Autoconsumo","Càrrec Variable Autoconsum","Cargo Variable Autoconsumo"]
["Exención Cargo Fijo Autoconsumo","Exención Cargo Fijo Autoconsumo","Exención Cargo Fijo Autoconsumo","Exempció Càrrec Fixe Autoconsum","Exención Cargo Fijo Autoconsumo"]
["Exención Cargo Variable Autoconsumo","Exención Cargo Variable Autoconsumo","Exención Cargo Variable Autoconsumo","Exempció Càrrec Variable Autoconsum","Exención Cargo Variable Autoconsumo"]
["Derechos de acometida de generación","Derechos de acometida de generación","Derechos de acometida de generación","Drets d'escomesa de generació","Derechos de acometida de generación"]
[{"$f":"IF(A$1=\"ca_ES\",C136,IF(A$1=\"es_ES\",B136,IF(A$1=\"eu_ES\",D136,\" \")))","v":"Fecha de Factura:"},"Fecha de Factura:","Data de Factura:","Faktura Data:"]
["Número de contrato:","Número de contrato:","Número de contracte: ","Kontratuaren zenbakia:"]
["Fecha fin contrato:","Fecha fin contrato:","Data fi de contracte:","Kontratuaren dataren amaiera:"]
["Lectura inicial (kWh)","Lectura inicial (kWh)","Lectura inicial (kWh)","Hasierako irakurketa (kWh)"]
["Lectura final (kWh)","Lectura final (kWh)","Lectura final (kWh)","Azken irakurketa (kWh)"]
["Maxímetros (kW)","Maxímetros (kW)","Maxímetres (kWh)","Maximeter (kWh)"]
["Fecha","Fecha","Data","Data"]
["Consumo activa (kWh)","Consumo activa (kWh)","Consum activa (kWh)","Kontsumo aktiboa (kWh)"]
["Consumo reactiva (kVArh)","Consumo reactiva (kVArh)","Consum reactiva (kVArh)","Kontsumo erreaktiboa (kVArh)"]
["ORIGEN DE LA ELECTRICIDAD","ORIGEN DE LA ELECTRICIDAD","ORIGEN DE L'ELECTRICITAT","ELEKTRIZITATEAREN JATORRIA"]
[]
[]
[]
[]
[{"$f":"IF(A$1=\"ca_ES\",C150,IF(A$1=\"es_ES\",B150,IF(A$1=\"eu_ES\",D150,\" \")))","v":"Ajustes"},"Ajustes","Ajustos","Ezarpenak"]
[]
[{"$f":"IF(A$1=\"ca_ES\",C152,IF(A$1=\"es_ES\",B152,IF(A$1=\"eu_ES\",D153,\" \")))","v":"Suplemento territorial por tributos económicos del año 2013 según la Orden TEC/271/2019"},"Suplemento territorial por tributos económicos del año 2013 según la Orden TEC/271/2019","Suplement territorial per tributs econòmics de l'any 2013 segons l'Ordre TEC/271/2019","Suplemento territorial por tributos económicos del año 2013 según la Orden TEC/271/2019"]
[{"$f":"IF(A$1=\"ca_ES\",C153,IF(A$1=\"es_ES\",B153,IF(A$1=\"eu_ES\",D153,\" \")))","v":"Estimado/a:"},"Estimado/a:","Estimat/da","Estimado/a:"]
["Adjuntamos la información publicada en el BOE con fecha Martes 12 de marzo de 2019. Núm. 61  Sec. I Pág. 23231, Anexo XIII","Adjuntamos la información publicada en el BOE con fecha Martes 12 de marzo de 2019. Núm. 61  Sec. I Pág. 23231, Anexo XIII","Adjuntem la informació publicada al BOE amb data Dimarts 12 de març de 2019. Núm. 61  Sec. I Pàg. 23231, Annex XIII","Adjuntamos la información publicada en el BOE con fecha Martes 12 de marzo de 2019. Núm. 61  Sec. I Pág. 23231, Anexo XIII"]
["Información sobre la regularización del suplemento por tributos autonómicos de la Comunidad Autónoma del año 2013","Información sobre la regularización del suplemento por tributos autonómicos de la Comunidad Autónoma del año 2013","Informació sobre la regularització del suplement per tributs autonòmics de la Comunitat Autònoma de l’any 2013.","Información sobre la regularización del suplemento por tributos autonómicos de la Comunidad Autónoma del año 2013"]
["Los peajes de acceso de energía eléctrica forman parte del precio de la electricidad, y están destinados a cubrir diferentes partidas de costes del sector eléctrico con retribución regulada. Entre otros, cubren el coste de las actividades de redes (transporte y distribución de energía eléctrica) y producción a partir de fuentes de energía renovables, cogeneración y residuos con régimen primado.","Los peajes de acceso de energía eléctrica forman parte del precio de la electricidad, y están destinados a cubrir diferentes partidas de costes del sector eléctrico con retribución regulada. Entre otros, cubren el coste de las actividades de redes (transporte y distribución de energía eléctrica) y producción a partir de fuentes de energía renovables, cogeneración y residuos con régimen primado.","Els peatges d'accés d'energia elèctrica formen part del preu de l'electricitat, i estan destinats a cobrir diferents partides de costos del sector elèctric amb retribució regulada. Entre altres, cobreixen el cost de les activitats de xarxes (transport i distribució d'energia elèctrica) i producció a partir de fonts d'energia renovables, cogeneració i residus amb règim primacial.","Los peajes de acceso de energía eléctrica forman parte del precio de la electricidad, y están destinados a cubrir diferentes partidas de costes del sector eléctrico con retribución regulada. Entre otros, cubren el coste de las actividades de redes (transporte y distribución de energía eléctrica) y producción a partir de fuentes de energía renovables, cogeneración y residuos con régimen primado."]
["En el año 2013 la normativa contemplaba que en caso de que estas actividades eléctricas fueran gravadas con tributos de carácter autonómico, al peaje de acceso se le incluiría un suplemento territorial para los consumidores de esa Comunidad Autónoma, si bien dicho suplemento no se llegó a aprobar por el Gobierno.","En el año 2013 la normativa contemplaba que en caso de que estas actividades eléctricas fueran gravadas con tributos de carácter autonómico, al peaje de acceso se le incluiría un suplemento territorial para los consumidores de esa Comunidad Autónoma, si bien dicho suplemento no se llegó a aprobar por el Gobierno.","L’any 2013 la normativa contemplava que en cas que aquestes activitats elèctriques fossin gravades amb tributs de caràcter autonòmic, al peatge d’accés se li inclouria un suplement territorial pels consumidors d’aquella Comunitat Autònoma, si bé aquest suplement no es va arribar a aprovar pel Govern. ","En el año 2013 la normativa contemplaba que en caso de que estas actividades eléctricas fueran gravadas con tributos de carácter autonómico, al peaje de acceso se le incluiría un suplemento territorial para los consumidores de esa Comunidad Autónoma, si bien dicho suplemento no se llegó a aprobar por el Gobierno."]
["En ejecución de las sentencias del Tribunal Supremo dictadas a resultas de los recursos interpuestos por empresas que ejercen su actividad en el sector eléctrico, se aprobó la Orden ETU/35/2017, de 23 de enero, por la que se establecen los suplementos territoriales en determinadas comunidades autónomas. Por ello, los suplementos territoriales han sido aplicados en sus facturas, sobre los consumos que realizó en el año 2013.","En ejecución de las sentencias del Tribunal Supremo dictadas a resultas de los recursos interpuestos por empresas que ejercen su actividad en el sector eléctrico, se aprobó la Orden ETU/35/2017, de 23 de enero, por la que se establecen los suplementos territoriales en determinadas comunidades autónomas. Por ello, los suplementos territoriales han sido aplicados en sus facturas, sobre los consumos que realizó en el año 2013.","En execució de les sentències del Tribunal Suprem dictades a resultes dels recursos interposats per empreses que exerceixen la seva activitat en el sector elèctric, es va aprovar la Ordre ETU/35/2017, de 23 de gener, per la que s’estableixen els suplements territorials en determinades comunitats autònomes. Per això, els suplements territorials han estat aplicats a les seves factures, sobre els consums que va realitzar l’any 2013. ","En ejecución de las sentencias del Tribunal Supremo dictadas a resultas de los recursos interpuestos por empresas que ejercen su actividad en el sector eléctrico, se aprobó la Orden ETU/35/2017, de 23 de enero, por la que se establecen los suplementos territoriales en determinadas comunidades autónomas. Por ello, los suplementos territoriales han sido aplicados en sus facturas, sobre los consumos que realizó en el año 2013."]
["El Tribunal Supremo, instado por las empresas recurrentes, ha determinado que esta ejecución fue parcial, por lo que la Ministra para la Transición Ecológica ha aprobado una orden ministerial con los suplementos territoriales adicionales para su Comunidad Autónoma que le serán aplicados en próximas facturas, sobre los consumos que realizó en el año 2013.","El Tribunal Supremo, instado por las empresas recurrentes, ha determinado que esta ejecución fue parcial, por lo que la Ministra para la Transición Ecológica ha aprobado una orden ministerial con los suplementos territoriales adicionales para su Comunidad Autónoma que le serán aplicados en próximas facturas, sobre los consumos que realizó en el año 2013.","El Tribunal Suprem, instat per les empreses recurrents, ha determinat que aquesta execució va ser parcial, per la qual cosa la Ministra per a la Transició Ecològica ha aprovat una ordre ministerial amb els suplements territorials addicionals per a la seva Comunitat Autònoma que li seran aplicats en pròximes factures, sobre els consums que va realitzar l'any 2013.","El Tribunal Supremo, instado por las empresas recurrentes, ha determinado que esta ejecución fue parcial, por lo que la Ministra para la Transición Ecológica ha aprobado una orden ministerial con los suplementos territoriales adicionales para su Comunidad Autónoma que le serán aplicados en próximas facturas, sobre los consumos que realizó en el año 2013."]
["Por ello, ","Por ello, ","Per això, ","Por ello, "]
["Regularizará las cantidades que resultan de detraer al valor fijado en concepto de suplemento territorial en su comunicad autónoma y el valor que se utilizó para determinar los suplementos territoriales aprobados en la orden ETU/35/2017, de 23 de enero.\"","Regularizará las cantidades que resultan de detraer al valor fijado en concepto de suplemento territorial en su comunicad autónoma y el valor que se utilizó para determinar los suplementos territoriales aprobados en la orden ETU/35/2017, de 23 de enero.\"","Regularitzarà les quantitats que resulten de restar el valor fixat en concepte de suplement territorial en la seva comunitat autònoma i el valor que es va utilitzar per determinar els suplements territorials aprovats a la ordre ETU/35/2017, de 23 de gener.\"","Regularizará las cantidades que resultan de detraer al valor fijado en concepto de suplemento territorial en su comunicad autónoma y el valor que se utilizó para determinar los suplementos territoriales aprobados en la orden ETU/35/2017, de 23 de enero.\""]
["Esta regularización se le aplicará en la factura adjunta, y vendrá identificada por el concepto «Suplemento territorial por tributos autonómicos de la Comunidad Autónoma pertinente del año 2013».","Esta regularización se le aplicará en la factura adjunta, y vendrá identificada por el concepto «Suplemento territorial por tributos autonómicos de la Comunidad Autónoma pertinente del año 2013».","Aquesta regularització se li aplicarà a la factura adjuntada, i vindrà identificada pel concepte «Suplement territorial per tributs autonòmics de la Comunitat Autònoma pertinent de l'any 2013».","Esta regularización se le aplicará en la factura adjunta, y vendrá identificada por el concepto «Suplemento territorial por tributos autonómicos de la Comunidad Autónoma pertinente del año 2013»."]
["DETALLE","DETALLE","DETALL","DETALLE"]
["Desde","Desde","Des de","Desde"]
["Hasta","Hasta","Fins","Hasta"]
["Total regularización","Total regularización","Total regularització","Total regularización"]
["Cuotas totales","Cuotas totales","Quotes totals","Cuotas totales"]
["Cuota actual","Cuota actual","Quota actual","Cuota actual"]
["Potencia (W)","Potencia (W)","Potència (W)","Potencia (W)"]
["Energía activa (Wh)","Energía activa (Wh)","Energia activa (Wh)","Energía activa (Wh)"]
["* Las unidades facilitadas por distribuidora para este suplemento vienen representadas en Watts para potencia (W) y en Watts hora (Wh) para energía ","* Las unidades facilitadas por distribuidora para este suplemento vienen representadas en Watts para potencia (W) y en Watts hora (Wh) para energía ","* Les unitats facilitades per distribuidora per aquest suplement venen representades en Watts per potència (W) i en Watts hora (Wh) per energia ","* Las unidades facilitadas por distribuidora para este suplemento vienen representadas en Watts para potencia (W) y en Watts hora (Wh) para energía "]
["Si tiene cualquier duda, puede ponerse en contacto con nosotros, haciendo uso de los medios habituales que encontrará en la factura.","Si tiene cualquier duda, puede ponerse en contacto con nosotros, haciendo uso de los medios habituales que encontrará en la factura.","Si te qualsevol dubte, pot posar-se en contacte amb nosaltres, fent ús dels mitjans habituals que trobarà a la factura.","Si tiene cualquier duda, puede ponerse en contacto con nosotros, haciendo uso de los medios habituales que encontrará en la factura."]
["Saludos cordiales, ","Saludos cordiales, ","Salutacions cordials","Saludos cordiales, "]

{"sheet":"Data","index":3,"n_rows":331,"n_cols":54,"rows_kept":331,"cut":false,"hidden":false,"merged":[]}
["Customer Name",null,null,null,null,null,null,null,null,null,null,null,null,null,null,null,null,null,null,null,null,null,null,null,null,null,"??????","cuota actual","potencia p1","potencia p2","potencia p3"," potencia p4","potencia p5","potencia p6","cambio1 Potencia p1 ","cambio1 Potencia p2","cambio1 Potencia p3 ","cambio1 Potencia p4","cambio1 Potencia p5","cambio1 Potencia p6","cambio2 Potencia p1","cambio2 Potencia p2","cambio2 Potencia p3","cambio2 Potencia p4","cambio2 Potencia p5","cambio2 Potencia p6","fecha efectiva cambio potencia 1","fecha efectiva cambio potencia 2","energia P1","energia P2","energia P3","energia P4","energia P5","energia P6"]
["product_name","INDEX 2.1DHA TG"]
["CIFNIF","b2234242"]
["Customer Address"]
["CUPS/Site-Code","ES0090960022205455PX0F"]
["contract_number_contract_distributor","2552352545"]
["site_address",{"$f":"\"\"","v":""},null,null,null,"Any Format Text"]
["contract_distributor_name","EDISTRIBUCION REDES DIGITALES SL.",null,"NumFactura","Any actual","Any Contracte","Numero factura a  aprtir de :"]
["contract_number",null,{"$f":"\"EN\" & MID(B9,4,2) & (D9+_xludf.NUMBERVALUE(MID(B9,6,LEN(B9)-5)))","v":{"$error":"#NAME?"}},{"$f":"IF(E9=F9,G9,G10)","v":1195},{"$f":"MID(B9,4,2)","v":""},"15",1150]
["contract_enddate","1997-04-12",null,null,null,"16",1195]
["contract_tariff","2.0A",{"$f":"MID(B11,1,1)","v":"2"},{"$f":"C11","v":"2"},{"$f":"MID(B11,4,1)","v":"A"},{"$f":"IF(E11=\"D\",1,0)","v":0}]
["pot_contracted_p1",{"$f":"C12 & \" kW      \"","v":"0 kW      "},0]
["pot_contracted_p2","0 kW      ",0]
["pot_contracted_p3","0 kW      ",0]
["bill_number"]
["payment_type","Domiciliado"]
["bill_date","15/23/2017",null,null,null,null,null,null,null,null,null,null,null,null,null,null,"Autoconsumo",null,null,null,"Tarifa plana Antes IE"]
["bill_maturity","02/05/2017",null,null,null,null,null,null,null,null,null,null,null,null,null,null,null,null,null,null,null,null,null,null,null,null,null,null,null,null,null,{"$f":"IF(AB2<>\"\",IF(AB2<>0,IF(AE20=49,ROUNDDOWN(1/AF20,0),IF(AE21=49,ROUNDDOWN(1/AF21,0),IF(AE22=49,ROUNDDOWN(1/AF22,0),IF(AE23=49,ROUNDDOWN(1/AF23,0),))))))","v":false}]
["bill_init","19/04/2017",null,null,null,null,null,null,null,null,null,null,null,null,null,null,"Cost final","Preu unitari","Energia",null,"Cost final",null,null,null,null,null,"Nombre","descripción","importe cuota actual ","posició en factura","concepto","Cuotas totales","importe total","fechadesde","fechahasta","comentarios","tipo impositivo"]
["bill_end","19/04/2018",null,null,null,null,null,null,null,null,null,null,null,null,null,null,{"$f":"IF(AE20=4000,VLOOKUP(\"Excedentes de autoconsumo\",$AA$20:$AI$35,3,FALSE),0)","v":0},{"$f":"IF(AE20=4000,VLOOKUP(\"Excedentes de autoconsumo\",$AA$20:$AI$35,7,FALSE),0)","v":0},{"$f":"IF(AE20=4000,VLOOKUP(\"Excedentes de autoconsumo\",$AA$20:$AI$35,6,FALSE),0)","v":0},null,{"$f":"IF(AE20=30041,VLOOKUP(\"Ajuste IE tarifa plana\",$AA$20:$AI$35,3,FALSE),0)","v":0}]
["bill_total_eur",54.16,null,null,null,null,null,null,null,null,null,null,null,null,null,null,0,0,0,null,0]
["payment_IBAN","ES1497490174010410841",null,null,null,null,null,null,null,null,null,null,null,null,null,null,0,0,0,null,0]
["bill_tp_priceday_p1_eur_kW",0,null,null,null,null,null,null,null,null,null,null,null,null,null,null,0,0,0,null,0]
["bill_tp_priceday_p2_eur_kW",0,null,null,null,null,null,null,null,null,null,null,null,null,null,null,0,0,0,null,0]
["bill_tp_priceday_p3_eur_kW",0,null,null,null,null,null,null,null,null,null,null,null,null,null,null,0,0,0,null,0]
["bill_tp_days_p1",0,null,null,null,null,null,null,null,null,null,null,null,null,null,null,0,0,0,null,0]
["bill_tp_days_p2",0,null,null,null,null,null,null,null,null,null,null,null,null,null,null,0,0,0,null,0]
["bill_tp_days_p3",0,null,null,null,null,null,null,null,null,null,null,null,null,null,null,0,0,0,null,0]
["bill_tp_total_p1_eur",0,null,null,null,null,null,null,null,null,null,null,null,null,null,null,0,0,0,null,0]
["bill_tp_total_p2_eur",0,null,null,null,null,null,null,null,null,null,null,null,null,null,null,0,0,0,null,0]
["bill_tp_total_p3_eur",0,null,null,null,null,null,null,null,null,null,null,null,null,null,null,0,0,0,null,0]
["bill_tp_p1_kW",0,null,null,null,null,null,null,null,null,null,null,null,null,null,null,0,0,0,null,0]
["bill_tp_p2_kW",0,null,null,null,null,null,null,null,null,null,null,null,null,null,null,0,0,0,null,0]
["bill_tp_p3_kW",0,null,null,null,null,null,null,null,null,null,null,null,null,null,null,{"$f":"SUM(Q20:Q33)","v":0},0,{"$f":"ROUND(SUM(S20:S33),2)","v":0},null,{"$f":"SUM(U20:U33)","v":0}]
["bill_te_p1_kWh",0]
["bill_te_p2_kWh",0]
["bill_te_p3_kWh",0]
["bill_te_p1_eur_kWh",0,"Energy_Info:"," ","(per defecte espai)"]
["bill_te_p2_eur_kWh",0]
["bill_te_p3_eur_kWh",0]
["bill_te_total_p1_eur",0]
["bill_te_total_p2_eur",0]
["bill_te_total_p3_eur",0]
["bill_subtotal_electrictax_eur",0]
["bill_electrictax_total_eur",0]
["bill_rents_eur",12.33]
["bill_tax_vat_subtotal_eur",0]
["bill_tax_vat_eur",0]
["customer_postalcode",28300]
["customer_city","Aranjuez"]
["customer_province","Madrid"]
["site_postalcode",{"$f":"\"\"","v":""}]
["site_city",""]
["site_province",""]
["bill_import_reactive_regularization",0]
["payment_maturitydate",{"$f":"\"\"","v":""}]
["site_address_complete",{"$f":"B7 & \" , \" & B53 & \" (\" & B52 & \") \" & B54","v":" ,  () "}]
["customer_address_complete",{"$f":"B4 & \" , \"& B50 & \" (\" & B49 & \") \" & B51","v":" , Aranjuez (28300) Madrid"}]
["pot_billed_p1",0]
["pot_billed_p2",0,null,null,null,null,"Maximetres","p1","p4",null,"p2","p5",null,"p3","p6"]
["pot_billed_p3",0,null,null,null,null,null,0,0,null,0,0,null,0,0]
["bill_import_distribution_rights",0]
["distributor_telephone","900 121 121"]
["ConsumosCabeceraJunto",{"$f":"REPT(\" \",10) & \"P1\" & REPT(\" \",10) & \"P2\" & REPT(\" \",10) & \"P3\" & REPT(\" \",10) & \"P4\" & REPT(\" \",10) & \"P5\" & REPT(\" \",10) & \"P6\"","v":"          P1          P2          P3          P4          P5          P6"}]
["ConsumosLecturaActualJunto",{"$f":"REPT(\" \",10-LEN(B70)) & B70 & REPT(\" \",10-LEN(B71)) & B71 & REPT(\" \",10-LEN(B72)) & B72 & REPT(\" \",10-LEN(B73)) & B73 & REPT(\" \",10-LEN(B74)) & B74 & REPT(\" \",10-LEN(B75)) & B75","v":"         0         0         0         0         0         0"}]
["ConsumosLecturaAnteriorJunto",{"$f":"REPT(\" \",10-LEN(B76)) & B76 & REPT(\" \",10-LEN(B77)) & B77 & REPT(\" \",10-LEN(B78)) & B78 & REPT(\" \",10-LEN(B79)) & B79 & REPT(\" \",10-LEN(B80)) & B80 & REPT(\" \",10-LEN(B81)) & B81","v":"         0         0         0         0         0         0"}]
["ConsumosConsumoJunto",{"$f":"REPT(\" \",10-LEN(B82)) & B82 & REPT(\" \",10-LEN(B83)) & B83 & REPT(\" \",10-LEN(B84)) & B84 & REPT(\" \",10-LEN(B85)) & B85 & REPT(\" \",10-LEN(B86)) & B86 & REPT(\" \",10-LEN(B87)) & B87","v":"         0         0         0         0         0         0"}]
["MaximetrosJunto",{"$f":"REPT(\" \",10-LEN(H61)) & H61 & REPT(\" \",10-LEN(K61)) & K61 & REPT(\" \",10-LEN(N61)) & N61 & REPT(\" \",10-LEN(I61)) & I61 & REPT(\" \",10-LEN(L61)) & L61 & REPT(\" \",10-LEN(O61)) & O61","v":"         0         0         0         0         0         0"},null,{"$f":"REPT(\" \",10-LEN(B82)) & B82 & REPT(\" \",10-LEN(B83)) & B83 & REPT(\" \",10-LEN(B84)) & B84 & REPT(\" \",10-LEN(B85)) & B85 & REPT(\" \",10-LEN(B86)) & B86 & REPT(\" \",10-LEN(B87)) & B87","v":"         0         0         0         0         0         0"}]
["ReactivaJunto",{"$f":"REPT(\" \",10-LEN(B112)) & B112 & REPT(\" \",10-LEN(B113)) & B113 & REPT(\" \",10-LEN(B114)) & B114 & REPT(\" \",10-LEN(B115)) & B115 & REPT(\" \",10-LEN(B116)) & B116 & REPT(\" \",10-LEN(B117)) & B117","v":"                   0         0         0         0         0"}]
["bill_readings_ae_reading_last_p1",0]
["bill_readings_ae_reading_last_p2",0]
["bill_readings_ae_reading_last_p3",0]
["bill_readings_ae_reading_last_p4",0]
["bill_readings_ae_reading_last_p5",0]
["bill_readings_ae_reading_last_p6",0]
["bill_readings_ae_reading_current_p1",0]
["bill_readings_ae_reading_current_p2",0]
["bill_readings_ae_reading_current_p3",0]
["bill_readings_ae_reading_current_p4",0]
["bill_readings_ae_reading_current_p5",0]
["bill_readings_ae_reading_current_p6",0]
["bill_readings_ae_consumption_p1",0]
["bill_readings_ae_consumption_p2",0]
["bill_readings_ae_consumption_p3",0]
["bill_readings_ae_consumption_p4",0]
["bill_readings_ae_consumption_p5",0]
["bill_readings_ae_consumption_p6",0]
["bill_readings_pm_current_p1",0]
["bill_readings_pm_current_p2",0]
["bill_readings_pm_current_p3",0]
["bill_readings_pm_current_p4",0]
["bill_readings_pm_current_p5",0]
["bill_readings_pm_current_p6",0]
["bill_readings_r1_current_p1",0,{"$f":"B94-C106","v":0},{"$f":"ROUND(C94,2)","v":0}]
["bill_readings_r1_current_p2",0,0,0]
["bill_readings_r1_current_p3",0,0,0]
["bill_readings_r1_current_p4",0,0,0]
["bill_readings_r1_current_p5",0,0,0]
["bill_readings_r1_current_p6",0,0,0]
["bill_readings_r1_current_price_p1",0]
["bill_readings_r1_current_price_p2",0]
["bill_readings_r1_current_price_p3",0]
["bill_readings_r1_current_price_p4",0]
["bill_readings_r1_current_price_p5",0]
["bill_readings_r1_current_price_p6",0]
["bill_readings_r1_last_p1",0,{"$f":"ROUND(B106,2)","v":0}]
["bill_readings_r1_last_p2",0,0]
["bill_readings_r1_last_p3",0,0]
["bill_readings_r1_last_p4",0,0]
["bill_readings_r1_last_p5",0,0]
["bill_readings_r1_last_p6",0,0]
["bill_readings_r1_consumption_p1",null,0,{"$f":"C112*B100","v":0}]
["bill_readings_r1_consumption_p2",0,0,0]
["bill_readings_r1_consumption_p3",0,0,0]
["bill_readings_r1_consumption_p4",0,0,0]
["bill_readings_r1_consumption_p5",0,0,0]
["bill_readings_r1_consumption_p6",0,0,0]
["ReactivaLecturaActual",{"$f":"REPT(\" \",10-LEN(B94)) & B94 & REPT(\" \",10-LEN(B95)) & B95 & REPT(\" \",10-LEN(B96)) & B96 & REPT(\" \",10-LEN(B97)) & B97 & REPT(\" \",10-LEN(B98)) & B98 & REPT(\" \",10-LEN(B99)) & B99","v":"         0         0         0         0         0         0"}]
["ReactivaLecturaAnterior",{"$f":"REPT(\" \",10-LEN(B106)) & B106 & REPT(\" \",10-LEN(B107)) & B107 & REPT(\" \",10-LEN(B108)) & B108 & REPT(\" \",10-LEN(B109)) & B109 & REPT(\" \",10-LEN(B110)) & B110 & REPT(\" \",10-LEN(B111)) & B111","v":"         0         0         0         0         0         0"}]
[null," "]
["bill_electrictax_discount_total_eur"]
["readinlv"," "]
["Numero factura rectificada"," ","Per defecte hi ha espai"]
["Extra field text"]
["Extra Fieldimport",0,{"$f":"IF(B125<>0,1,0)","v":0}]
[]
["vat_tax"]
["vat_pctge"]
[]
["bill_tax_vat_eur_2"]
["vat_tax_2"]
["vat_pctge_2"]
[]
["bill_sending_address","dlajdñjañdñd ´dkakdák´kad´kad d´ka´dka´dkákdák´dka dákdákdákd´k´dád´"]
["bill_sending_postalcode","08080"]
["bill_sending_city","Población"]
["bill_sending_province"]
[]
["regulated_atr_price_energy_p1",null,{"$f":"B139*B35","v":0}]
["regulated_atr_price_energy_p2",null,0]
["regulated_atr_price_energy_p3",null,0]
["regulated_atr_price_energy_p4",null,{"$f":"B142*B174","v":0}]
["regulated_atr_price_energy_p5",null,0,"atr"]
["regulated_atr_price_energy_p6",null,0,{"$f":"C139+C140+C141+C142+C143+C144","v":0}]
[]
["bill_destination_taxes",33]
["bill_destination_energy_production",33]
["bill_destination_regulated_concepts_renewals",33]
["bill_destination_regulated_concepts_distribution",33]
["bill_destination_regulated_concepts_others",33]
[]
["guarantees"]
[]
["bill_rents_day_price",0]
[]
["potence_excess_reactive_p1"]
["potence_excess_reactive_p2"]
["potence_excess_reactive_p3"]
["pot_contracted_p4",{"$f":"C159 & \" kW      \"","v":"0 kW      "},0]
["pot_contracted_p5","0 kW      ",0]
["pot_contracted_p6","0 kW      ",0]
["bill_tp_p4_kW"]
["bill_tp_p5_kW"]
["bill_tp_p6_kW"]
["bill_tp_priceday_p4_eur_kW"]
["bill_tp_priceday_p5_eur_kW"]
["bill_tp_priceday_p6_eur_kW"]
["bill_tp_days_p4"]
["bill_tp_days_p5"]
["bill_tp_days_p6"]
["bill_tp_total_p4_eur"]
["bill_tp_total_p5_eur"]
["bill_tp_total_p6_eur"]
["bill_te_p4_kWh",0]
["bill_te_p5_kWh",0]
["bill_te_p6_kWh",0]
["bill_te_p4_eur_kWh"]
["bill_te_p5_eur_kWh"]
["bill_te_p6_eur_kWh"]
["potence_excess_reactive_p4"]
["potence_excess_reactive_p5"]
["potence_excess_reactive_p6"]
["bill_te_total_p4_eur"]
["bill_te_total_p5_eur"]
["bill_te_total_p6_eur"]
["bank_name"]
[]
["bill_import_potence_regularization"]
["counter_type","Mecánico"]
[]
["amount_repercussion_concept",null,{"$f":"ROUND(B191-D191-Q34-U34,2)","v":0},{"$f":"IF(Data!AB2<>\"\",IF(Data!AB2<>0,IF(Data!AE20=49,Data!AC20,IF(Data!AE21=49,Data!AC21,IF(Data!AE22=49,Data!AC22,IF(Data!AE23=49,Data!AC23,0)))),0),0)","v":0}]
[]
["ae_current_source",null,{"$f":"IF(B193=\"Estimada\",\"Estimada\",\"Real\")","v":"Real"}]
["pm_current_source"]
["r_current_source"]
[]
[]
[]
[]
[1,{"$f":"G200","v":0},{"$f":"A200 & \"-\" & B200","v":"1-0"},null,null,null,null,null,{"$f":"VLOOKUP(\"1-2\",$C$200:$F$214,2,FALSE)","v":{"$error":"#N/A"}},{"$f":"VLOOKUP(\"1-2\",$C$200:$F$214,4,FALSE)","v":{"$error":"#N/A"}},{"$f":"IFERROR(I200,0)","v":0},0,{"$f":"VLOOKUP(I200,Languages!$A$110:$D$135,2,FALSE)","v":{"$error":"#N/A"}},{"$f":"IFERROR(M200,0)","v":0},null,null,null,null,null,null,{"$f":"VLOOKUP(3,$B$200:$C$214,2,FALSE)","v":{"$error":"#N/A"}},{"$f":"VLOOKUP(U200,$C$200:$F$214,3,FALSE)","v":{"$error":"#N/A"}},{"$f":"VLOOKUP(U200,$C$200:$F$214,4,FALSE)","v":{"$error":"#N/A"}},{"$f":"IFERROR(V200,0)","v":0},0,null,null,{"$f":"VLOOKUP(1,$B$200:$C$214,2,FALSE)","v":{"$error":"#N/A"}},{"$f":"VLOOKUP(AB200,$C$200:$F$214,3,FALSE)","v":{"$error":"#N/A"}},{"$f":"VLOOKUP(AB200,$C$200:$F$214,4,FALSE)","v":{"$error":"#N/A"}},{"$f":"IFERROR(AC200,0)","v":0},0]
[2,0,"2-0",null,null,null,null,null,{"$f":"VLOOKUP(\"2-2\",$C$200:$F$214,2,FALSE)","v":{"$error":"#N/A"}},{"$f":"VLOOKUP(\"2-2\",$C$200:$F$214,4,FALSE)","v":{"$error":"#N/A"}},{"$f":"IFERROR(I201,0)","v":0},0,{"$f":"VLOOKUP(I201,Languages!$A$110:$D$135,2,FALSE)","v":{"$error":"#N/A"}},0,null,null,null,null,null,null,{"$f":"LEFT(U200,FIND(\"-\",U200)-1)+1 & \"-3\"","v":{"$error":"#N/A"}},{"$error":"#N/A"},{"$error":"#N/A"},{"$f":"IFERROR(V201,0)","v":0},0,null,null,{"$f":"LEFT(AB200,FIND(\"-\",AB200)-1)+1 & \"-1\"","v":{"$error":"#N/A"}},{"$error":"#N/A"},{"$error":"#N/A"},{"$f":"IFERROR(AC201,0)","v":0},0]
[3,0,"3-0",null,null,null,null,null,{"$f":"VLOOKUP(\"3-2\",$C$200:$F$214,2,FALSE)","v":{"$error":"#N/A"}},{"$f":"VLOOKUP(\"3-2\",$C$200:$F$214,4,FALSE)","v":{"$error":"#N/A"}},{"$f":"IFERROR(I202,0)","v":0},0,{"$f":"VLOOKUP(I202,Languages!$A$110:$D$135,2,FALSE)","v":{"$error":"#N/A"}},0,null,null,null,null,null,null,{"$error":"#N/A"},{"$error":"#N/A"},{"$error":"#N/A"},{"$f":"IFERROR(V202,0)","v":0},0,null,null,{"$error":"#N/A"},{"$error":"#N/A"},{"$error":"#N/A"},{"$f":"IFERROR(AC202,0)","v":0},0]
[4,0,"4-0",null,null,null,null,null,{"$f":"VLOOKUP(\"4-2\",$C$200:$F$214,2,FALSE)","v":{"$error":"#N/A"}},{"$f":"VLOOKUP(\"4-2\",$C$200:$F$214,4,FALSE)","v":{"$error":"#N/A"}},{"$f":"IFERROR(I203,0)","v":0},0,{"$f":"VLOOKUP(I203,Languages!$A$110:$D$135,2,FALSE)","v":{"$error":"#N/A"}},0,null,null,null,null,null,null,{"$error":"#N/A"},{"$error":"#N/A"},{"$error":"#N/A"},{"$f":"IFERROR(V203,0)","v":0},0,null,null,{"$error":"#N/A"},{"$error":"#N/A"},{"$error":"#N/A"},{"$f":"IFERROR(AC203,0)","v":0},0]
[5,0,"5-0",null,null,null,null,null,{"$f":"VLOOKUP(\"5-2\",$C$200:$F$214,2,FALSE)","v":{"$error":"#N/A"}},{"$f":"VLOOKUP(\"5-2\",$C$200:$F$214,4,FALSE)","v":{"$error":"#N/A"}},{"$f":"IFERROR(I204,0)","v":0},0,{"$f":"VLOOKUP(I204,Languages!$A$110:$D$135,2,FALSE)","v":{"$error":"#N/A"}},0,null,null,null,null,null,null,{"$error":"#N/A"},{"$error":"#N/A"},{"$error":"#N/A"},{"$f":"IFERROR(V204,0)","v":0},0,null,null,{"$error":"#N/A"},{"$error":"#N/A"},{"$error":"#N/A"},{"$f":"IFERROR(AC204,0)","v":0},0]
[6,0,"6-0",null,null,null,null,null,{"$f":"VLOOKUP(\"6-2\",$C$200:$F$214,2,FALSE)","v":{"$error":"#N/A"}},{"$f":"VLOOKUP(\"6-2\",$C$200:$F$214,4,FALSE)","v":{"$error":"#N/A"}},{"$f":"IFERROR(I205,0)","v":0},0,{"$f":"VLOOKUP(I205,Languages!$A$110:$D$135,2,FALSE)","v":{"$error":"#N/A"}},0,null,null,null,null,null,null,{"$error":"#N/A"},{"$error":"#N/A"},{"$error":"#N/A"},{"$f":"IFERROR(V205,0)","v":0},0]
[7,0,"7-0",null,null,null,null,null,{"$f":"VLOOKUP(\"7-2\",$C$200:$F$214,2,FALSE)","v":{"$error":"#N/A"}},{"$f":"VLOOKUP(\"7-2\",$C$200:$F$214,4,FALSE)","v":{"$error":"#N/A"}},{"$f":"IFERROR(I206,0)","v":0},0,{"$f":"VLOOKUP(I206,Languages!$A$110:$D$135,2,FALSE)","v":{"$error":"#N/A"}},0]
[8,0,"8-0",null,null,null,null,null,{"$f":"VLOOKUP(\"8-2\",$C$200:$F$214,2,FALSE)","v":{"$error":"#N/A"}},{"$f":"VLOOKUP(\"8-2\",$C$200:$F$214,4,FALSE)","v":{"$error":"#N/A"}},{"$f":"IFERROR(I207,0)","v":0},0,{"$f":"VLOOKUP(I207,Languages!$A$110:$D$135,2,FALSE)","v":{"$error":"#N/A"}},0]
[9,0,"9-0",null,null,null,null,null,{"$f":"VLOOKUP(\"9-2\",$C$200:$F$214,2,FALSE)","v":{"$error":"#N/A"}},{"$f":"VLOOKUP(\"9-2\",$C$200:$F$214,4,FALSE)","v":{"$error":"#N/A"}},{"$f":"IFERROR(I208,0)","v":0},0,{"$f":"VLOOKUP(I208,Languages!$A$110:$D$135,2,FALSE)","v":{"$error":"#N/A"}},0]
[10,0,"10-0",null,null,null,null,null,{"$f":"VLOOKUP(\"10-2\",$C$200:$F$214,2,FALSE)","v":{"$error":"#N/A"}},{"$f":"VLOOKUP(\"10-2\",$C$200:$F$214,4,FALSE)","v":{"$error":"#N/A"}},{"$f":"IFERROR(I209,0)","v":0},0,{"$f":"VLOOKUP(I209,Languages!$A$110:$D$135,2,FALSE)","v":{"$error":"#N/A"}},0]
[11,0,"11-0",null,null,null,null,null,{"$f":"VLOOKUP(\"11-2\",$C$200:$F$214,2,FALSE)","v":{"$error":"#N/A"}},{"$f":"VLOOKUP(\"11-2\",$C$200:$F$214,4,FALSE)","v":{"$error":"#N/A"}},{"$f":"IFERROR(I210,0)","v":0},0,{"$f":"VLOOKUP(I210,Languages!$A$110:$D$135,2,FALSE)","v":{"$error":"#N/A"}},0]
[12,0,"12-0",null,null,null,null,null,{"$f":"VLOOKUP(\"12-2\",$C$200:$F$214,2,FALSE)","v":{"$error":"#N/A"}},{"$f":"VLOOKUP(\"12-2\",$C$200:$F$214,4,FALSE)","v":{"$error":"#N/A"}},{"$f":"IFERROR(I211,0)","v":0},0,{"$f":"VLOOKUP(I211,Languages!$A$110:$D$135,2,FALSE)","v":{"$error":"#N/A"}},0]
[13,0,"13-0",null,null,null,null,null,{"$f":"VLOOKUP(\"13-2\",$C$200:$F$214,2,FALSE)","v":{"$error":"#N/A"}},{"$f":"VLOOKUP(\"13-2\",$C$200:$F$214,4,FALSE)","v":{"$error":"#N/A"}},{"$f":"IFERROR(I212,0)","v":0},0,{"$f":"VLOOKUP(I212,Languages!$A$110:$D$135,2,FALSE)","v":{"$error":"#N/A"}},0]
[14,0,"14-0",null,null,null,null,null,{"$f":"VLOOKUP(\"14-2\",$C$200:$F$214,2,FALSE)","v":{"$error":"#N/A"}},{"$f":"VLOOKUP(\"14-2\",$C$200:$F$214,4,FALSE)","v":{"$error":"#N/A"}},{"$f":"IFERROR(I213,0)","v":0},0,{"$f":"VLOOKUP(I213,Languages!$A$110:$D$135,2,FALSE)","v":{"$error":"#N/A"}},0]
[15,0,"15-0",null,null,null,null,null,{"$f":"VLOOKUP(\"15-2\",$C$200:$F$214,2,FALSE)","v":{"$error":"#N/A"}},{"$f":"VLOOKUP(\"15-2\",$C$200:$F$214,4,FALSE)","v":{"$error":"#N/A"}},{"$f":"IFERROR(I214,0)","v":0},0,{"$f":"VLOOKUP(I214,Languages!$A$110:$D$135,2,FALSE)","v":{"$error":"#N/A"}},0]
[]
[]
[]
[]
[]
["ae_last_source",null,{"$f":"IF(B220=\"Estimada\",\"Estimada\",\"Real\")","v":"Real"}]
[]
[]
[]
[]
["Numero factura rectificada"]
["rectified_bill_number"]
[]
[]
[]
[]
[]
[]
[]
[]
[]
[]
[]
[]
[]
[1,{"$f":"H240","v":0},{"$f":"A240 & \"-\" & B240","v":"1-0"},null,null,null,null,null,{"$f":"VLOOKUP(\"1-20000\",$C$240:$F$241,3,FALSE)","v":{"$error":"#N/A"}},{"$f":"VLOOKUP(\"1-20000\",$C$240:$F$241,4,FALSE)","v":{"$error":"#N/A"}},{"$f":"IFERROR(I240,0)","v":0},0]
[2,0,"2-0",null,null,null,null,null,{"$f":"VLOOKUP(\"2-20000\",$C$240:$F$241,3,FALSE)","v":{"$error":"#N/A"}},{"$f":"VLOOKUP(\"2-20000\",$C$240:$F$241,4,FALSE)","v":{"$error":"#N/A"}},{"$f":"IFERROR(I241,0)","v":0},0]
[null,null,null,null,null,null,null,null,null,null,null,{"$f":"SUM(L240:L241)","v":0}]
[]
[]
[]
[]
[]
[]
[]
[]
[]
[]
[]
[]
[]
[]
[]
[]
[]
[]
[]
[]
[]
[]
[]
[]
[]
[]
[]
[]
[]
[]
[]
[]
[]
[]
[]
[]
[]
[]
[]
[]
[]
[]
[]
[]
[]
[]
[]
["real_reactive_consumption_p1"]
["real_reactive_consumption_p2"]
["real_reactive_consumption_p3"]
["real_reactive_consumption_p4"]
["real_reactive_consumption_p5"]
["real_reactive_consumption_p6"]
[]
[]
[]
[]
["own_company_name"]
[]
["capacitiva_total"]
["cargo_energia_p1_price"]
["cargo_energia_p2_price"]
["cargo_energia_p3_price"]
["cargo_energia_p4_price"]
["cargo_energia_p5_price"]
["cargo_energia_p6_price"]
["counter_serial_number",54661616]
["annual_pm_max_p1"]
["annual_pm_max_p2"]
["annual_pm_max_p3"]
["annual_pm_max_p4"]
["annual_pm_max_p5"]
["annual_pm_max_p6"]
["distributor_link_portal","www.endesa.com/es","preu total","sense carrecs"]
["cargo_potencia_total",null,{"$f":"B29+B30+B31+B171+B172+B173","v":0},{"$f":"C317-B317","v":0}]
["cargo_energia_total",null,{"$f":"B41+B42+B43+B183+B184+B185","v":0},{"$f":"C318-B318-D144","v":0}]
["baja_anticipada"]
["cargo_potencia_p1_price"]
["cargo_potencia_p2_price"]
["cargo_potencia_p3_price"]
["cargo_potencia_p4_price"]
["cargo_potencia_p5_price"]
["cargo_potencia_p6_price"]
["termino_potencia_p1_price"]
["termino_potencia_p2_price"]
["termino_potencia_p3_price"]
["termino_potencia_p4_price"]
["termino_potencia_p5_price"]
["termino_potencia_p6_price"]